{"text_format":"1","workbook":"xlsx","n_sheets":56,"sheets":["modProv","modList05","Лог обновления","Титульный","Форма 4.3.1","Форма 1.0.1 | Форма 4.3.2","Форма 4.3.2","Форма 4.4","Форма 1.0.1 | Форма 4.5","Форма 4.5","Форма 1.0.1 | Форма 4.9","Форма 4.9","Форма 1.0.2","Сведения об изменении","Комментарии","modReestr","modList13","modList07","AllSheetsInThisWorkbook","modCheckCyan","modInfo","TEHSHEET","modfrmSelectData","modList06","modList01","modList08","et_union_hor","et_union_vert","modList00","modList02","modList03","modList04","modList09","modHTTP","modfrmRegion","MR_LIST","REESTR_VT","REESTR_VED","modfrmReestrObj","DataOrg","modfrmReestr","modUpdTemplMain","REESTR_ORG","modClassifierValidate","modHyp","modfrmDateChoose","modComm","modThisWorkbook","REESTR_MO","REESTR_MO_FILTER","modfrmReestrMR","modServiceModule","modfrmCheckUpdates","REESTR_DS","REESTR_CHS","REESTR_LINK"],"not_rendered":{"charts":0,"images":8,"macros":0,"external_links":0,"defined_names":314,"comments":8,"pivot_tables":0},"unopened":[],"bounds":{"document_bytes":16777216,"sheet_cells":100000,"rows_first":2000,"rows_last":500,"rows_between":2000,"halvings":0,"cell_chars":16384,"cell_head_chars":4096},"cells_cut":0,"cells_raw":0,"read":"whole","date_system":"1900"}

{"sheet":"modProv","index":0,"n_rows":0,"n_cols":0,"rows_kept":0,"cut":false,"hidden":true,"merged":[]}

{"sheet":"modList05","index":1,"n_rows":0,"n_cols":0,"rows_kept":0,"cut":false,"hidden":true,"merged":[]}

{"sheet":"Лог обновления","index":2,"n_rows":26,"n_cols":3,"rows_kept":26,"cut":false,"hidden":true,"merged":[]}
["Дата/Время","Сообщение","Статус"]
["2019-04-18T08:34:24","Проверка доступных обновлений...","Информация"]
["2019-04-18T08:34:25","Доступно обновление до версии 1.0.3","Информация"]
["2019-04-18T08:34:25","Описание изменений: Версия 1.0.3\n1. Исправление формулы расчета показателя 'Доля расходов, % (от суммы расходов по указанной статье)' листа 'Форма 4.3.2'\n2. Корректировка проверки при сохранении\n\nВерсия 1.0.2\n1. Снята обязательность заполнения пунктов 21-21.2 листа 'Форма 4.3.1'\n\nВерсия 1.0.1\n1. Исправлен расчёт п.3.2 ('расходы на топливо') листа 'Форма 4.3.1'\n","Информация"]
["2019-04-18T08:34:25","Размер файла обновления: 332800 байт","Информация"]
["2019-04-18T08:34:30","Подготовка к обновлению...","Информация"]
["2019-04-18T08:34:44","Сохранение файла резервной копии: D:\\документы\\downloads\\123.BKP.xlsb","Информация"]
["2019-04-18T08:34:45","Резервная копия создана: D:\\документы\\downloads\\123.BKP.xlsb","Информация"]
["2019-04-18T08:34:45","Создание книги для установки обновлений...","Информация"]
["2019-04-18T08:34:46","Файл обновления загружен: D:\\документы\\downloads\\UPDATE.FAS.JKH.OPEN.INFO.BALANCE.WARM.TO.1.0.3.38.xls","Информация"]
["2019-04-24T10:55:11","Проверка доступных обновлений...","Информация"]
["2019-04-24T10:55:13","Нет доступных обновлений для отчёта с кодом FAS.JKH.OPEN.INFO.BALANCE.WARM!","Информация"]
["2019-04-29T09:30:45","Проверка доступных обновлений...","Информация"]
["2019-04-29T09:30:47","Нет доступных обновлений для отчёта с кодом FAS.JKH.OPEN.INFO.BALANCE.WARM!","Информация"]
["2019-04-29T14:01:02","Проверка доступных обновлений...","Информация"]
["2019-04-29T14:01:05","Нет доступных обновлений для отчёта с кодом FAS.JKH.OPEN.INFO.BALANCE.WARM!","Информация"]
["2019-04-29T14:01:32","Проверка доступных обновлений...","Информация"]
["2019-04-29T14:01:33","Нет доступных обновлений для отчёта с кодом FAS.JKH.OPEN.INFO.BALANCE.WARM!","Информация"]
["2019-04-29T14:04:01","Проверка доступных обновлений...","Информация"]
["2019-04-29T14:04:02","Нет доступных обновлений для отчёта с кодом FAS.JKH.OPEN.INFO.BALANCE.WARM!","Информация"]
["2019-04-29T14:11:41","Проверка доступных обновлений...","Информация"]
["2019-04-29T14:11:44","Нет доступных обновлений для отчёта с кодом FAS.JKH.OPEN.INFO.BALANCE.WARM!","Информация"]
["2019-04-30T13:21:40","Проверка доступных обновлений...","Информация"]
["2019-04-30T13:21:41","Нет доступных обновлений для отчёта с кодом FAS.JKH.OPEN.INFO.BALANCE.WARM!","Информация"]
["2019-04-30T13:23:32","Проверка доступных обновлений...","Информация"]
["2019-04-30T13:23:34","Нет доступных обновлений для отчёта с кодом FAS.JKH.OPEN.INFO.BALANCE.WARM!","Информация"]

{"sheet":"Титульный","index":3,"n_rows":56,"n_cols":6,"rows_kept":56,"cut":false,"hidden":false,"merged":[[4,4,4,5],[55,4,55,5]]}
[null,null,null,null,null,28795512]
[]
[]
[null,null,null,null,null,{"$f":"version","v":{"$error":"#REF!"}}]
[null,null,null,null,"Информация о показателях финансово-хозяйственной деятельности, об основных потребительских характеристиках товаров и услуг, об инвестиционных программах, о способах приобретения, стоимости и объемах товаров, необходимых для производства товаров и (или) оказания услуг организацией в сфере теплоснабжения*"]
[]
[null,null,null,null,"Субъект РФ","Ивановская область"]
[]
[null,null,null,null,"Публикация2","На сайте регулирующего органа"]
[]
[null,null,null,null,"Отсутствует Интернет в границах территории МО, где организация осуществляет регулируемые виды деятельности","нет"]
[]
[null,null,null,null,"Тип отчета","первичное раскрытие информации"]
[null,null,null,null,"Дата внесения изменений в информацию, подлежащую раскрытию","29.04.2019"]
[]
[null,null,null,null,"Применяется дифференциация тарифа по централизованным системам теплоснабжения?"]
[]
[]
[]
[null,null,2018,null,"Отчётный период (год)",2018]
[]
[]
[null,null,null,null,"Является ли данное юридическое лицо подразделением (филиалом) другой организации","нет"]
[]
[]
[null,null,null,null,"Наименование организации","АО \"ИГТСК\""]
[null,null,null,null,"Наименование филиала"]
[null,null,null,null,"ИНН","3702733445"]
[null,null,null,null,"КПП","370201001"]
[null,null,null,null,"Вид деятельности"]
[]
[null,null,null,null,"Тип теплоснабжающей организации","Регулируемая организация"]
[]
[null,null,null,null,"Организация осуществляет поставку товаров (оказание услуг) только по нерегулируемым ценам","нет"]
[]
[null,null,null,null,"Регулируемая организация осуществляет сдачу годового бухгалтерского баланса в налоговые органы","да"]
[null,null,null,null,"Дата направления годового бухгалтерского баланса в налоговые органы","04.03.2019"]
[]
[null,null,null,null,"Превышает ли выручка от регулируемой деятельности 80% совокупной выручки за отчетный год","да"]
[]
[null,null,null,null,"Организация выполняет инвестиционную программу","нет"]
[null,null,null,null,"Инвестиционная программа относится к деятельности, при осуществлении которой расчеты за товары (услуги) в сфере теплоснабжения осуществляются по регулируемым ценам (тарифам) (за исключением деятельности по подключению (технологическому присоединению) к системе теплоснабжения)",{"$f":"F41","v":"нет"}]
[null,null,null,null,"Дифференциация по территориям и системам коммунальной инфраструктуры применяется для инвестиционных программ","нет"]
[]
[null,null,null,null,"Почтовый адрес регулируемой организации","153021"]
[null,null,null,null,"Фамилия, имя, отчество руководителя","Рябов А.А."]
[]
[null,null,null,null,null,"Ответственный за составление формы"]
[null,null,null,null,"Фамилия, имя, отчество","Гудков И.В."]
[null,null,null,null,"Должность","зам. генерального директора"]
[null,null,null,null,"(код) номер телефона","8-(4932)-59-28-13"]
[null,null,null,null,"e-mail","os@igtsk.ru"]
[]
[]
[]
[null,null,null,null,"* Информация о способах приобретения, стоимости и объемах товаров, необходимых для производства регулируемых товаров и (или) оказания регулируемых услуг регулируемых организаций, публикуется по форме 4.9 регулируемыми организациями в течение 10 календарных дней с момента подачи заявления об установлении цен (тарифов) в сфере теплоснабжения в орган исполнительной власти субъекта Российской Федерации в области государственного регулирования цен (тарифов)"]

{"sheet":"Форма 4.3.1","index":4,"n_rows":114,"n_cols":12,"rows_kept":114,"cut":false,"hidden":false,"merged":[[32,0,36,0],[5,0,10,0],[20,3,20,5],[23,8,25,8],[109,4,109,6],[24,4,25,4],[24,3,25,3],[24,5,25,5],[23,3,23,6],[55,3,56,3],[55,5,56,5],[57,3,58,3],[57,5,58,5]]}
[null,null,null,null,null,null,4,5]
[null,null,null,null,null,"тыс. руб.",null,null,"Указываются прочие расходы, которые подлежат отнесению на регулируемые виды деятельности в соответствии с законодательством в сфере теплоснабжения."]
[]
[null,null,null,null,null,"кг у. т./Гкал",null,null,"Указывается норматив удельного расхода условного топлива при производстве тепловой энергии источниками тепловой энергии для отдельного источника тепловой энергии."]
[]
[null,"vt",null,{"$f":"A6","v":0},null,"х","х","х","В колонке «Наименование параметра» указывается вид приобретаемого топлива.\nЕсли приобретается несколько видов топлива, то информация по каждому из них указывается отдельно."]
[null,null,null,null,"общая стоимость",null,{"$f":"G8*G9+G10","v":0},{"$f":"H8*H9+H10","v":0}]
[null,null,null,{"$f":"A6&\".1\"","v":".1"},"объем",null,null,null,"В колонке «Единица измерения» указываются единицы измерения объема приобретаемого топлива.\nВ колонке «Информация» указывается величина объема приобретаемого топлива."]
[null,null,null,{"$f":"A6&\".2\"","v":".2"},"стоимость за единицу объема","тыс. руб."]
[null,null,null,{"$f":"A6&\".3\"","v":".3"},"стоимость доставки","тыс. руб."]
[null,null,null,{"$f":"A6&\".4\"","v":".4"},"способ приобретения","х"]
[]
[null,null,null,null,null,"кг усл. топл./Гкал",null,null,"Указывается плановый удельный расход условного топлива при производстве тепловой энергии источниками тепловой энергии для отдельного источника тепловой энергии."]
[]
[null,null,null,null,null,"кг усл. топл./Гкал",null,null,"Указывается фактический удельный расход условного топлива при производстве тепловой энергии источниками тепловой энергии для отдельного источника тепловой энергии."]
[]
[null,null,null,null,null,"Гкал/ч",null,null,"Указывается установленная тепловая мощность для источника тепловой энергии."]
[]
[null,null,null,null,null,null,null,null,4]
[]
[null,null,null,"Информация об основных показателях финансово-хозяйственной деятельности регулируемой организации, включая структуру основных производственных затрат (в части регулируемой деятельности),  информация об основных технико-экономических параметрах деятельности единой теплоснабжающей организации, теплоснабжающей организации и теплосетевой организации в ценовых зонах теплоснабжения1"]
[]
[null,null,null,null,null,null,22,25]
[null,null,null,"Параметры формы",null,null,null,null,"Описание параметров формы"]
[null,null,null,"№ п/п","Наименование параметра","Единица измерения","Вид деятельности:\r\n  - Сбыт. Тепловая энергия\r\n\r\nТерритория оказания услуг:\r\n  - без дифференциации\r\n\r\nЦентрализованная система теплоснабжения:\r\n  - наименование отсутствует","Вид деятельности:\r\n  - Сбыт. Теплоноситель\r\n\r\nТерритория оказания услуг:\r\n  - без дифференциации\r\n\r\nЦентрализованная система теплоснабжения:\r\n  - наименование отсутствует"]
[null,null,null,null,null,null,"Информация","Информация"]
[null,null,null,"1","2","3",{"$f":"G1","v":4},{"$f":"H1","v":5}]
[null,null,null,"1","Дата сдачи годового бухгалтерского баланса в налоговые органы","х",{"$f":"IF(buhg_flag=\"да\",IF(dateBuhg=\"\",\"Не указана\",dateBuhg),\"Не осуществлялась\")","v":"04.03.2019"},{"$f":"IF(buhg_flag=\"да\",IF(dateBuhg=\"\",\"Не указана\",dateBuhg),\"Не осуществлялась\")","v":"04.03.2019"},"Указывается календарная дата сдачи бухгалтерского баланса в налоговые органы в случае, если организация сдает бухгалтерский баланс в налоговые органы по виду регулируемой деятельности, в отношении которого размещаются данные. Дата указывается в виде «ДД.ММ.ГГГГ»."]
[null,null,null,"2","Выручка от регулируемой деятельности по виду деятельности","тыс. руб.",2453505.747,{"$f":"85026.073+1099.37","v":86125.442999999999},"Указывается выручка от регулируемой деятельности по виду деятельности в сфере теплоснабжения."]
[null,null,null,"3","Себестоимость производимых товаров (оказываемых услуг) по регулируемому виду деятельности, включая:","тыс. руб.",{"$f":"SUM(G31:G32,G39,G42:G50,G53,G56,G60)","v":2838955.9777328414},{"$f":"SUM(H31:H32,H39,H42:H50,H53,H56,H60)","v":98908.499669836194},"Указывается суммарная себестоимость производимых товаров."]
[null,null,null,"3.1","расходы на покупаемую тепловую энергию (мощность), теплоноситель","тыс. руб.",{"$f":"2589606.10525172+812.3863301638","v":2590418.4915818837},{"$f":"99720.886-812.3863301638","v":98908.499669836194}]
[null,null,null,"3.2","расходы на топливо","тыс. руб.",{"$f":"SUMIF($E33:$E38,$E7,G33:G38)","v":0},{"$f":"SUMIF($E33:$E38,$E7,H33:H38)","v":0},"Указываются суммарные расходы на приобретение топлива всех видов."]
["3.2.0"]
[]
[]
[]
[]
[null,null,null,null,"Добавить вид топлива"]
[null,null,null,"3.3","Расходы на покупаемую электрическую энергию (мощность), используемую в технологическом процессе","тыс. руб.",{"$f":"1293.39167","v":1293.39167},0]
[null,null,null,"3.3.1","Средневзвешенная стоимость 1 кВт.ч (с учетом мощности)","руб.",{"$f":"G39/G41","v":6.5343603422741614},0]
[null,null,null,"3.3.2","Объем приобретенной электрической энергии","тыс. кВт·ч",{"$f":"197.936998","v":197.93699799999999},0]
[null,null,null,"3.4","Расходы на приобретение холодной воды, используемой в технологическом процессе","тыс. руб.",0,0]
[null,null,null,"3.5","Расходы на хим. реагенты, используемые в технологическом процессе","тыс. руб.",0,0]
[null,null,null,"3.6","Расходы на оплату труда основного производственного персонала","тыс. руб.",{"$f":"65114.3048129009-G46","v":35898.245992900898},0]
[null,null,null,"3.7","Отчисления на социальные нужды основного производственного персонала","тыс. руб.",{"$f":"19407.8524667805-G47","v":10919.0251967805},0]
[null,null,null,"3.8","Расходы на оплату труда административно-управленческого персонала","тыс. руб.",{"$f":"29216.05882","v":29216.058819999998},0]
[null,null,null,"3.9","Отчисления на социальные нужды административно-управленческого персонала","тыс. руб.",{"$f":"8488.82727","v":8488.8272699999998},0]
[null,null,null,"3.10","Расходы на амортизацию основных производственных средств","тыс. руб.",12083.6093452,0]
[null,null,null,"3.11","Расходы на аренду имущества, используемого для осуществления регулируемого вида деятельности","тыс. руб.",{"$f":"43.5529899999999","v":43.552989999999902},0]
[null,null,null,"3.12","Общепроизводственные расходы, в том числе:","тыс. руб.",0,0,"Указывается общая сумма общепроизводственных расходов."]
[null,null,null,"3.12.1","Расходы на текущий ремонт","тыс. руб.",0,0,"Указываются расходы на текущий ремонт, отнесенные к общепроизводственным расходам."]
[null,null,null,"3.12.2","Расходы на капитальный ремонт","тыс. руб.",0,0,"Указываются расходы на капитальный ремонт, отнесенные к общепроизводственным расходам."]
[null,null,null,"3.13","Общехозяйственные расходы, в том числе:","тыс. руб.",0,0,"Указывается общая сумма общехозяйственных расходов."]
[null,null,null,"3.13.1","Расходы на текущий ремонт","тыс. руб.",0,0,"Указываются расходы на текущий ремонт, отнесенные к общехозяйственным расходам."]
[null,null,null,"3.13.2","Расходы на капитальный ремонт","тыс. руб.",0,0,"Указываются расходы на капитальный ремонт, отнесенные к общехозяйственным расходам."]
[null,null,null,"3.14","Расходы на капитальный и текущий ремонт основных производственных средств","тыс. руб.",0,0]
[null,null,null,null,"Информация об объемах товаров и услуг, их стоимости и способах приобретения у тех организаций, сумма оплаты услуг которых превышает 20 процентов суммы расходов по указанной статье расходов",null,"отсутствует","отсутствует",null,null,null,{"$f":"nerr(MATCH(\"есть\",List01_flag_index_1,0))","v":{"$error":"#NAME?"}}]
[]
[null,null,null,null,null,null,"отсутствует","отсутствует",null,null,null,{"$f":"nerr(MATCH(\"есть\",List01_flag_index_2,0))","v":{"$error":"#NAME?"}}]
[null,null,null,"3.15","Прочие расходы, которые подлежат отнесению на регулируемые виды деятельности, в том числе:","тыс. руб.",{"$f":"SUM(G61:G69)","v":150594.77486607677},{"$f":"SUM(H61:H69)","v":0},"Указывается общая сумма прочих расходов, которые подлежат отнесению на регулируемые виды деятельности в соответствии с законодательством в сфере теплоснабжения."]
[null,null,null,"3.15.0"]
[null,null,"О","3.15.1","Расходы на оплату работ и услуг производственного характера по договорам со сторонними  организациями","тыс. руб.",{"$f":"20728.5376305563","v":20728.5376305563},0,"Указываются прочие расходы, которые подлежат отнесению на регулируемые виды деятельности в соответствии с законодательством в сфере теплоснабжения."]
[null,null,"О","3.15.2","Расходы на оплату иных работ и услуг по договорам с организациями","тыс. руб.",{"$f":"4400.95169941947","v":4400.9516994194701},0,"Указываются прочие расходы, которые подлежат отнесению на регулируемые виды деятельности в соответствии с законодательством в сфере теплоснабжения."]
[null,null,"О","3.15.3","Расходы на служебные командировки","тыс. руб.",{"$f":"75.56907","v":75.569069999999996},0,"Указываются прочие расходы, которые подлежат отнесению на регулируемые виды деятельности в соответствии с законодательством в сфере теплоснабжения."]
[null,null,"О","3.15.4","Расходы на обучение персонала","тыс. руб.",{"$f":"46.879332","v":46.879331999999998},0,"Указываются прочие расходы, которые подлежат отнесению на регулируемые виды деятельности в соответствии с законодательством в сфере теплоснабжения."]
[null,null,"О","3.15.5","Расходы на оплату услуг организаций, осуществляющих регулир.виды деятельности","тыс. руб.",674.61064340680798,0,"Указываются прочие расходы, которые подлежат отнесению на регулируемые виды деятельности в соответствии с законодательством в сфере теплоснабжения."]
[null,null,"О","3.15.6","Расходы на уплату налогов, сборов и других обязательных платежей","тыс. руб.",{"$f":"2126.82154780652","v":2126.8215478065199},0,"Указываются прочие расходы, которые подлежат отнесению на регулируемые виды деятельности в соответствии с законодательством в сфере теплоснабжения."]
[null,null,"О","3.15.7","Прочие расходы, которые подлежат отнесению на регулируемые виды деятельности","тыс. руб.",{"$f":"120483.484424172+16.4895446+1005.12703511567+2329.695609-G39","v":122541.40494288768},0,"Указываются прочие расходы, которые подлежат отнесению на регулируемые виды деятельности в соответствии с законодательством в сфере теплоснабжения."]
[null,null,null,null,"Добавить прочие расходы"]
[null,null,null,"4","Валовая прибыль (убытки) от реализации товаров и оказания услуг по регулируемому виду деятельности","тыс. руб.",{"$f":"G29-G30","v":-385450.23073284142},{"$f":"H29-H31","v":-12783.056669836194}]
[null,null,null,"5","Чистая прибыль, полученная от регулируемого вида деятельности, в том числе:","тыс. руб.",0,0,"Указывается общая сумма чистой прибыли, полученной от регулируемого вида деятельности."]
[null,null,null,"5.1","Размер расходования чистой прибыли на финансирование мероприятий, предусмотренных инвестиционной программой регулируемой организации","тыс. руб.",0,0]
[null,null,null,"6","Изменение стоимости основных фондов, в том числе:","тыс. руб.",0,0,"Указывается общее изменение стоимости основных фондов."]
[null,null,null,"6.1","Изменение стоимости основных фондов за счет их ввода в эксплуатацию (вывода из эксплуатации)","тыс. руб.",0,0,"Указываются общее изменение стоимости основных фондов за счет их ввода в эксплуатацию и вывода из эксплуатации."]
[null,null,null,"6.1.1","Изменение стоимости основных фондов за счет их ввода в эксплуатацию","тыс. руб.",0,0,"Указываются изменение стоимости основных фондов за счет их ввода в эксплуатацию."]
[null,null,null,"6.1.2","Изменение стоимости основных фондов за счет их вывода в эксплуатацию","тыс. руб.",0,0,"Указываются изменение стоимости основных фондов за счет их вывода из эксплуатации."]
[null,null,null,"6.2","Изменение стоимости основных фондов за счет их переоценки","тыс. руб.",0,0]
[null,null,null,"7","Годовая бухгалтерская отчетность, включая бухгалтерский баланс и приложения к нему","x","https://portal.eias.ru/Portal/DownloadPage.aspx?type=12&guid=da692d8b-d8b8-4bef-bb2c-1f3eba6f5c14","https://portal.eias.ru/Portal/DownloadPage.aspx?type=12&guid=da692d8b-d8b8-4bef-bb2c-1f3eba6f5c14","Указывается ссылка на документ, предварительно загруженный в хранилище файлов ФГИС ЕИАС.\nРегулируемыми организациями информация раскрывается в случае, если выручка от регулируемых видов деятельности превышает 80 процентов совокупной выручки за отчетный год."]
[null,null,null,"8","Установленная тепловая мощность объектов основных фондов, используемых для теплоснабжения, в том числе по каждому источнику тепловой энергии","Гкал/ч",0,0,"Указывается суммарная установленная тепловая мощность объектов основных фондов, используемых для осуществления теплоснабжения.\nРегулируемыми организациями указывается информация по объектам, используемым для осуществления регулируемых видов деятельности."]
[null,null,null,"8.0"]
[null,null,null,null,"Добавить источник тепловой энергии",null,null,null,"В случае наличия нескольких источников тепловой энергии установленная тепловая мощность по каждому из них указывается в отдельных строках."]
[null,null,null,"9","Тепловая нагрузка по договорам теплоснабжения","Гкал/ч",529.82616512499999,0,"Регулируемыми организациями указывается информация по договорам, заключенным в рамках осуществления регулируемых видов деятельности"]
[null,null,null,"10","Объем вырабатываемой тепловой энергии","тыс. Гкал",0,0,"Регулируемыми организациями указывается информация тепловой энергии, выработанной в рамках осуществления регулируемых видов деятельности."]
[null,null,null,"10.1","Объем приобретаемой тепловой энергии","тыс. Гкал",{"$f":"1485.0933653","v":1485.0933653},0,"Информация указывается только едиными теплоснабжающими организациями."]
[null,null,null,"11","Объем тепловой энергии, отпускаемой потребителям ","тыс. Гкал",{"$f":"1316.889658","v":1316.8896580000001},0,"Указывается общий объем тепловой энергии, отпускаемой потребителям.\nРегулируемыми организациями указывается информация по договорам, заключенным в рамках осуществления регулируемых видов деятельности."]
[null,null,null,"11.1","Определенном по приборам учета, в т.ч.:","тыс. Гкал",499.35277500000001,0]
[null,null,null,"11.1.1","Определенный по приборам учета объем тепловой энергии, отпускаемой по договорам потребителям, максимальный объем потребления тепловой энергии объектов которых составляет менее чем 0,2 Гкал","тыс. Гкал",0,0]
[null,null,null,"11.2","Определенном расчетным путем (нормативам потребления коммунальных услуг)","тыс. Гкал",{"$f":"G85-G86","v":817.53688299999999},0]
[null,null,null,"12","Нормативы технологических потерь при передаче тепловой энергии, теплоносителя по тепловым сетям","Ккал/ч. мес.",0,0]
[null,null,null,"13","Фактический объем потерь при передаче тепловой энергии","тыс. Гкал/год",{"$f":"19.907144","v":19.907143999999999},0]
[null,null,null,"13.1","Плановый объем потерь при передаче тепловой энергии","тыс. Гкал/год",{"$f":"21.011109","v":21.011109000000001},0,"Информация указывается только едиными теплоснабжающими организациями, теплоснабжающими организациями и теплосетевыми организациями в ценовых зонах теплоснабжения."]
[null,null,null,"14","Среднесписочная численность основного производственного персонала","человек",{"$f":"53.76","v":53.76},0]
[null,null,null,"15","Среднесписочная численность административно-управленческого персонала","человек",{"$f":"(43.98+0.75)*0.98","v":43.835399999999993},0]
[null,null,null,"16","Норматив удельного расхода условного топлива при производстве тепловой энергии источниками тепловой энергии, с распределением по источникам тепловой энергии, используемым для осуществления регулируемых видов деятельности","кг у. т./Гкал",0,0,"Указывается норматив удельного расхода условного топлива при производстве тепловой энергии источниками тепловой энергии по всем источникам тепловой энергии в целом."]
[null,null,null,"16.0"]
[null,null,null,null,"Добавить источник тепловой энергии",null,null,null,"В случае наличия нескольких источников тепловой энергии норматив удельного расхода условного топлива по каждому из них указывается в отдельных строках."]
[null,null,null,"17","Плановый удельный расход условного топлива при производстве тепловой энергии источниками тепловой энергии с распределением по источникам тепловой энергии","кг усл. топл./Гкал",0,0,"Указывается плановый удельный расход условного топлива при производстве тепловой энергии источниками тепловой энергии по всем источникам тепловой энергии в целом.\nИнформация указывается только едиными теплоснабжающими организациями, теплоснабжающими организациями и теплосетевыми организациями в ценовых зонах теплоснабжения."]
[null,null,null,"17.0"]
[null,null,null,null,"Добавить источник тепловой энергии",null,null,null,"В случае наличия нескольких источников тепловой энергии плановый удельный расход условного топлива по каждому из них указывается в отдельных строках."]
[null,null,null,"18","Фактический удельный расход условного топлива при производстве тепловой энергии источниками тепловой энергии с распределением по источникам тепловой энергии","кг усл. топл./Гкал",0,0,"Регулируемыми организациями указывается информация с распределением по источникам тепловой энергии, используемым для осуществления регулируемых видов деятельности."]
[null,null,null,"18.0"]
[null,null,null,null,"Добавить источник тепловой энергии",null,null,null,"В случае наличия нескольких источников тепловой энергии фактический удельный расход условного топлива по каждому из них указывается в отдельных строках."]
[null,null,null,"19","Удельный расход электрической энергии на производство (передачу) тепловой энергии на единицу тепловой энергии, отпускаемой потребителям","тыс. кВт.ч/Гкал",0,0,"Регулируемыми организациями указывается информация по договорам, заключенным в рамках осуществления регулируемой деятельности."]
[null,null,null,"20","Удельный расход холодной воды на производство (передачу) тепловой энергии на единицу тепловой энергии, отпускаемой потребителям","куб.м/Гкал",0,0,"Регулируемыми организациями указывается информация по договорам, заключенным в рамках осуществления регулируемой деятельности."]
[null,null,null,"21","Информация о показателях технико-экономического состояния систем теплоснабжения (за исключением теплопотребляющих установок потребителей тепловой энергии, теплоносителя, а также источников тепловой энергии, функционирующих в режиме комбинированной выработки электрической и тепловой энергии), в т.ч.:","x","https://portal.eias.ru/Portal/DownloadPage.aspx?type=12&guid=796134c8-4409-416e-a9f4-8d180e0df824","https://portal.eias.ru/Portal/DownloadPage.aspx?type=12&guid=796134c8-4409-416e-a9f4-8d180e0df824","Указывается ссылка на документ, предварительно загруженный в хранилище файлов ФГИС ЕИАС."]
[null,null,null,"21.1","Информация о показателях физического износа объектов теплоснабжения","x","https://portal.eias.ru/Portal/DownloadPage.aspx?type=12&guid=796134c8-4409-416e-a9f4-8d180e0df824","https://portal.eias.ru/Portal/DownloadPage.aspx?type=12&guid=796134c8-4409-416e-a9f4-8d180e0df824","Указывается ссылка на документ, предварительно загруженный в хранилище файлов ФГИС ЕИАС."]
[null,null,null,"21.2","Информация о показателях энергетической эффективности объектов теплоснабжения","x","https://portal.eias.ru/Portal/DownloadPage.aspx?type=12&guid=796134c8-4409-416e-a9f4-8d180e0df824","https://portal.eias.ru/Portal/DownloadPage.aspx?type=12&guid=796134c8-4409-416e-a9f4-8d180e0df824","Указывается ссылка на документ, предварительно загруженный в хранилище файлов ФГИС ЕИАС."]
[]
[]
[null,null,null,1,"Единые теплоснабжающие организации размещают информацию, указанную в пунктах 1 – 11.2, 13 – 15, 17 – 21.2 формы."]
[null,null,null,null,"Теплоснабжающие организации и теплосетевые организации в ценовых зонах теплоснабжения размещают информацию, указанную в пунктах 1 – 8.1, 10, 13 – 15, 17 – 18.1, 21 – 21.2 формы."]
[]
[]
[null,null,null,null,null,null,{"$f":"IF(G29-G30 <>G70,\"WARNING\",\"\")","v":""},{"$f":"IF(H29-H30 <>H70,\"WARNING\",\"\")","v":""}]

{"sheet":"Форма 1.0.1 | Форма 4.3.2","index":5,"n_rows":32,"n_cols":7,"rows_kept":32,"cut":false,"hidden":true,"merged":[[20,3,20,5],[20,6,21,6],[31,4,31,5],[4,3,4,6],[5,3,5,6],[7,3,7,6],[8,3,8,5],[8,6,9,6],[19,3,19,6]]}
[null,null,null,null,null,null,4]
[]
[]
[]
[null,null,null,"Форма 1.0.1 Основные параметры раскрываемой информации 1"]
[]
[]
[null,null,22,"Форма 1.0.1"]
[null,null,null,"Параметры формы",null,null,"Описание параметров формы"]
["\\",null,null,"№ п/п",null,"Информация"]
[null,null,null,"1",2,3,4]
[null,null,null,1,"Дата заполнения/внесения изменений",{"$f":"IF(form_up_date=\"\",\"\",form_up_date)","v":"29.04.2019"},"Указывается календарная дата первичного заполнения или внесения изменений в форму в виде «ДД.ММ.ГГГГ»."]
[null,null,null,"2.1","Наименование централизованной системы коммунальной инфраструктуры","наименование отсутствует","Указывается наименование централизованной системы холодного водоснабжения/горячего водоснабжения/водоотведения/теплоснабжения, к которой относится размещаемая информация.\nВ случае наличия нескольких централизованных систем коммунальной инфраструктуры, информация по каждой из них указывается в отдельной строке. "]
[null,null,null,"3.1","Наименование регулируемого вида деятельности","Сбыт. Тепловая энергия","Указывается наименование вида регулируемой деятельности."]
[null,null,null,"4.1","Территория оказания услуги по регулируемому виду деятельности","x"]
[null,null,null,{"$f":"D15&\".1\"","v":"4.1.1"},"Субъект РФ",{"$f":"IF(region_name=\"\",\"\",region_name)","v":"Ивановская область"},"Указывается наименование субъекта Российской Федерации"]
[null,null,null,"4.1.1.1","муниципальный район","Городской округ Иваново","Указывается наименование муниципального района, на территории которого организация оказывает услуги по регулируемому виду деятельности."]
[null,null,null,"4.1.1.1.1","муниципальное образование","Городской округ Иваново (24701000)","Указывается наименование и код муниципального района, муниципального образования в соответствии с Общероссийским классификатором территорий муниципальных образований (далее - ОКТМО), входящего в муниципальный район, на территории которого организация оказывает услуги по регулируемому виду деятельности.\nВ случае оказания услуг по регулируемому виду деятельности на территории нескольких муниципальных районов (муниципальных образований) данные по каждому их них указываются в отдельной строке."]
[]
[null,null,25,"Форма 1.0.1"]
[null,null,null,"Параметры формы",null,null,"Описание параметров формы"]
["\\",null,null,"№ п/п",null,"Информация"]
[null,null,null,"1",2,3,4]
[null,null,null,1,"Дата заполнения/внесения изменений",{"$f":"IF(form_up_date=\"\",\"\",form_up_date)","v":"29.04.2019"},"Указывается календарная дата первичного заполнения или внесения изменений в форму в виде «ДД.ММ.ГГГГ»."]
[null,null,null,"2.1","Наименование централизованной системы коммунальной инфраструктуры","наименование отсутствует","Указывается наименование централизованной системы холодного водоснабжения/горячего водоснабжения/водоотведения/теплоснабжения, к которой относится размещаемая информация.\nВ случае наличия нескольких централизованных систем коммунальной инфраструктуры, информация по каждой из них указывается в отдельной строке. "]
[null,null,null,"3.1","Наименование регулируемого вида деятельности","Сбыт. Теплоноситель","Указывается наименование вида регулируемой деятельности."]
[null,null,null,"4.1","Территория оказания услуги по регулируемому виду деятельности","x"]
[null,null,null,{"$f":"D27&\".1\"","v":"4.1.1"},"Субъект РФ",{"$f":"IF(region_name=\"\",\"\",region_name)","v":"Ивановская область"},"Указывается наименование субъекта Российской Федерации"]
[null,null,null,"4.1.1.1","муниципальный район","Городской округ Иваново","Указывается наименование муниципального района, на территории которого организация оказывает услуги по регулируемому виду деятельности."]
[null,null,null,"4.1.1.1.1","муниципальное образование","Городской округ Иваново (24701000)","Указывается наименование и код муниципального района, муниципального образования в соответствии с Общероссийским классификатором территорий муниципальных образований (далее - ОКТМО), входящего в муниципальный район, на территории которого организация оказывает услуги по регулируемому виду деятельности.\nВ случае оказания услуг по регулируемому виду деятельности на территории нескольких муниципальных районов (муниципальных образований) данные по каждому их них указываются в отдельной строке."]
[]
[null,null,null,null,"  1 Информация по данной форме публикуется при раскрытии информации по каждой из форм."]

{"sheet":"Форма 4.3.2","index":6,"n_rows":25,"n_cols":34,"rows_kept":25,"cut":false,"hidden":true,"merged":[[4,3,4,10],[29,4,29,17],[6,18,7,18],[6,3,6,17],[7,4,7,5],[7,7,7,8],[7,11,7,12],[11,3,17,3],[11,4,11,17],[18,3,24,3],[18,4,18,17],[11,28,17,28],[12,4,12,15],[12,20,14,20],[12,21,14,21],[15,4,15,15],[15,20,17,20],[15,21,17,21],[18,28,24,28],[19,4,19,15],[19,20,21,20],[19,21,21,21],[22,4,22,15],[22,20,24,20],[22,21,24,21]]}
[]
[]
[]
[]
[null,null,null,"Информация о расходах на капитальный и текущий ремонт основных производственных средств"]
[]
[null,null,null,"Параметры формы",null,null,null,null,null,null,null,null,null,null,null,null,null,null,"Описание параметров формы"]
[null,null,null,"№ п/п","№ п/п",null,"Наименование параметра","№ п/п",null,"Способ приобретения","Реквизиты договора","№ п/п",null,"Наименование товара/услуги","Объем приобретенных товаров, услуг","Единица измерения объема","Стоимость, тыс. руб.","Доля расходов, % (от суммы расходов по указанной статье)"]
[null,null,null,"1",null,"2","3",null,"4","5","6",null,"7","8","9","10","11","12","13"]
[]
[null,null,null,"0"]
[22,null,null,"1","Вид деятельности:\r\n  - Сбыт. Тепловая энергия\r\n\r\nТерритория оказания услуг:\r\n  - без дифференциации\r\n\r\nЦентрализованная система теплоснабжения:\r\n  - наименование отсутствует",null,null,null,null,null,null,null,null,null,null,null,null,null,null,null,null,null,null,null,null,null,null,null,null,null,"",null,"NOTSHOW",3]
[null,null,null,null,"Информация об объемах товаров и услуг, их стоимости и способах приобретения у организаций, в том числе:",null,null,null,null,null,null,null,null,null,null,null,{"$f":"SUMIF(T14:T15,\"i\",Q14:Q15)","v":0},null,"Указывается сумма стоимости приобретения товаров и услуг у организаций, сумма оплаты услуг которых превышает 20% суммы расходов на капитальный и текущий ремонт основных производственных средства","i",1,{"$f":"INDEX(List01_flag_index_1,1,MATCH(A12,List01_NumberColumns,0))","v":"отсутствует"}]
[null,null,null,null,null,0]
[null,null,null,null,"","","",""]
[null,null,null,null,null,null,null,null,null,null,null,null,null,null,null,null,null,null,null,"i",2,{"$f":"INDEX(List01_flag_index_2,1,MATCH(A12,List01_NumberColumns,0))","v":"отсутствует"}]
[]
[null,null,null,null,"","","",""]
[25,null,null,"2","Вид деятельности:\r\n  - Сбыт. Теплоноситель\r\n\r\nТерритория оказания услуг:\r\n  - без дифференциации\r\n\r\nЦентрализованная система теплоснабжения:\r\n  - наименование отсутствует",null,null,null,null,null,null,null,null,null,null,null,null,null,null,null,null,null,null,null,null,null,null,null,null,null,"",null,"NOTSHOW",3]
[null,null,null,null,"Информация об объемах товаров и услуг, их стоимости и способах приобретения у организаций, в том числе:",null,null,null,null,null,null,null,null,null,null,null,{"$f":"SUMIF(T21:T22,\"i\",Q21:Q22)","v":0},null,"Указывается сумма стоимости приобретения товаров и услуг у организаций, сумма оплаты услуг которых превышает 20% суммы расходов на капитальный и текущий ремонт основных производственных средства","i",1,{"$f":"INDEX(List01_flag_index_1,1,MATCH(A19,List01_NumberColumns,0))","v":"отсутствует"}]
[null,null,null,null,null,0]
[null,null,null,null,"","","",""]
[null,null,null,null,null,null,null,null,null,null,null,null,null,null,null,null,null,null,null,"i",2,{"$f":"INDEX(List01_flag_index_2,1,MATCH(A19,List01_NumberColumns,0))","v":"отсутствует"}]
[]
[null,null,null,null,"","","",""]

{"sheet":"Форма 4.4","index":7,"n_rows":22,"n_cols":11,"rows_kept":22,"cut":false,"hidden":false,"merged":[[2,3,2,5],[6,10,8,10],[8,0,8,1],[7,3,8,3],[7,4,8,4],[7,5,8,5],[7,6,7,7],[6,3,6,7],[5,6,5,7],[5,8,5,9],[7,8,7,9]]}
[null,null,null,null,null,null,4,null,5,null,5]
[]
[null,null,null,"Информация об основных потребительских характеристиках регулируемых товаров и услуг регулируемой организации и их соответствии установленным требованиям1"]
[]
[]
[null,null,null,null,null,null,22,null,25]
[null,null,null,"Параметры формы",null,null,null,null,null,null,"Описание параметров формы"]
[null,null,null,"№ п/п","Информация, подлежащая раскрытию","Единица измерения","Вид деятельности:\r\n  - Сбыт. Тепловая энергия\r\n\r\nТерритория оказания услуг:\r\n  - без дифференциации\r\n\r\nЦентрализованная система теплоснабжения:\r\n  - наименование отсутствует",null,"Вид деятельности:\r\n  - Сбыт. Теплоноситель\r\n\r\nТерритория оказания услуг:\r\n  - без дифференциации\r\n\r\nЦентрализованная система теплоснабжения:\r\n  - наименование отсутствует"]
[null,null,null,null,null,null,"Информация","Ссылка на документ","Информация","Ссылка на документ"]
[null,null,null,"1","2","3",{"$f":"G1&\".1\"","v":"4.1"},{"$f":"G1&\".2\"","v":"4.2"},{"$f":"I1&\".1\"","v":"5.1"},{"$f":"I1&\".2\"","v":"5.2"}]
[null,null,null,1,"Количество аварий на тепловых сетях","ед. на км",{"$f":"27/35.2","v":0.76704545454545447},null,0,null,"Указывается количество любых нарушений на тепловых сетях в расчете на один километр трубопровода."]
[null,null,null,"2","Количество аварий на источниках тепловой энергии","ед. на источник",0,null,0,null,"Указывается количество любых нарушений на источниках тепловой энергии"]
[null,null,null,"3","Показатели надежности и качества, установленные в соответствии с законодательством Российской Федерации","х","Не утверждены",null,"Не утверждены",null,"В колонке «Ссылка на документ» указывается материал в виде ссылки на документ, содержащий информацию об установленных показателях надежности и качества, предварительно загруженный в хранилище данных ФГИС ЕИАС.\nВ случае, если показатели надежности и качества не утверждены в колонке «Информация» указывается «Не утверждены».\nИнформация в данной строке не указывается теплоснабжающими организациями, теплосетевыми организациями в ценовых зонах теплоснабжения."]
[null,null,null,"4","Сведения о несоблюдении значений параметров качества теплоснабжения и (или) параметров, отражающих допустимые перерывы в теплоснабжении","х","х","х","х","х","Информация в строках 4.1 - 4.3 указывается в случае, если организация имеет статус единой теплоснабжающей организации."]
[null,null,null,"4.1","количество составленных актов, подтверждающих факт превышения разрешенных отклонений значений параметров,","шт."]
[null,null,null,"4.2","средняя продолжительность устранения превышения разрешенных отклонений значений параметров","дн."]
[null,null,null,"4.3","совокупная величина снижения размера платы за тепловую энергию (мощность) потребителям в связи с превышением разрешенных отклонений значений параметров","руб."]
[null,null,null,"5","Доля числа исполненных в срок договоров о подключении","%",0,null,0,null,"Указывается процент общего количества заключенных договоров о подключении (технологическом присоединении).\nИнформация в данной строке не указывается теплоснабжающими организациями, теплосетевыми организациями в ценовых зонах теплоснабжения."]
[null,null,null,"6","Средняя продолжительность рассмотрения заявлений о подключении","дн.",0,null,0,null,"Информация в данной строке не указывается теплоснабжающими организациями, теплосетевыми организациями в ценовых зонах теплоснабжения."]
[]
[null,null,null,1,"Едиными теплоснабжающими организациями, теплоснабжающими и теплосетевыми организациями в ценовых зонах теплоснабжения указывается информация об основных потребительских "]
[null,null,null,null,"характеристиках товаров и услуг, поставляемых и оказываемых этими организациями в ценовых зонах теплоснабжения."]

{"sheet":"Форма 1.0.1 | Форма 4.5","index":8,"n_rows":32,"n_cols":7,"rows_kept":32,"cut":false,"hidden":true,"merged":[[20,3,20,5],[20,6,21,6],[31,4,31,5],[4,3,4,6],[5,3,5,6],[7,3,7,6],[8,3,8,5],[8,6,9,6],[19,3,19,6]]}
[null,null,null,null,null,null,4]
[]
[]
[]
[null,null,null,"Форма 1.0.1 Основные параметры раскрываемой информации 1"]
[]
[]
[null,null,22,"Форма 1.0.1"]
[null,null,null,"Параметры формы",null,null,"Описание параметров формы"]
["\\",null,null,"№ п/п",null,"Информация"]
[null,null,null,"1",2,3,4]
[null,null,null,1,"Дата заполнения/внесения изменений",{"$f":"IF(form_up_date=\"\",\"\",form_up_date)","v":"29.04.2019"},"Указывается календарная дата первичного заполнения или внесения изменений в форму в виде «ДД.ММ.ГГГГ»."]
[null,null,null,"2.1","Наименование централизованной системы коммунальной инфраструктуры","наименование отсутствует","Указывается наименование централизованной системы холодного водоснабжения/горячего водоснабжения/водоотведения/теплоснабжения, к которой относится размещаемая информация.\nВ случае наличия нескольких централизованных систем коммунальной инфраструктуры, информация по каждой из них указывается в отдельной строке. "]
[null,null,null,"3.1","Наименование регулируемого вида деятельности","Сбыт. Тепловая энергия","Указывается наименование вида регулируемой деятельности."]
[null,null,null,"4.1","Территория оказания услуги по регулируемому виду деятельности","x"]
[null,null,null,{"$f":"D15&\".1\"","v":"4.1.1"},"Субъект РФ",{"$f":"IF(region_name=\"\",\"\",region_name)","v":"Ивановская область"},"Указывается наименование субъекта Российской Федерации"]
[null,null,null,"4.1.1.1","муниципальный район","Городской округ Иваново","Указывается наименование муниципального района, на территории которого организация оказывает услуги по регулируемому виду деятельности."]
[null,null,null,"4.1.1.1.1","муниципальное образование","Городской округ Иваново (24701000)","Указывается наименование и код муниципального района, муниципального образования в соответствии с Общероссийским классификатором территорий муниципальных образований (далее - ОКТМО), входящего в муниципальный район, на территории которого организация оказывает услуги по регулируемому виду деятельности.\nВ случае оказания услуг по регулируемому виду деятельности на территории нескольких муниципальных районов (муниципальных образований) данные по каждому их них указываются в отдельной строке."]
[]
[null,null,25,"Форма 1.0.1"]
[null,null,null,"Параметры формы",null,null,"Описание параметров формы"]
["\\",null,null,"№ п/п",null,"Информация"]
[null,null,null,"1",2,3,4]
[null,null,null,1,"Дата заполнения/внесения изменений",{"$f":"IF(form_up_date=\"\",\"\",form_up_date)","v":"29.04.2019"},"Указывается календарная дата первичного заполнения или внесения изменений в форму в виде «ДД.ММ.ГГГГ»."]
[null,null,null,"2.1","Наименование централизованной системы коммунальной инфраструктуры","наименование отсутствует","Указывается наименование централизованной системы холодного водоснабжения/горячего водоснабжения/водоотведения/теплоснабжения, к которой относится размещаемая информация.\nВ случае наличия нескольких централизованных систем коммунальной инфраструктуры, информация по каждой из них указывается в отдельной строке. "]
[null,null,null,"3.1","Наименование регулируемого вида деятельности","Сбыт. Теплоноситель","Указывается наименование вида регулируемой деятельности."]
[null,null,null,"4.1","Территория оказания услуги по регулируемому виду деятельности","x"]
[null,null,null,{"$f":"D27&\".1\"","v":"4.1.1"},"Субъект РФ",{"$f":"IF(region_name=\"\",\"\",region_name)","v":"Ивановская область"},"Указывается наименование субъекта Российской Федерации"]
[null,null,null,"4.1.1.1","муниципальный район","Городской округ Иваново","Указывается наименование муниципального района, на территории которого организация оказывает услуги по регулируемому виду деятельности."]
[null,null,null,"4.1.1.1.1","муниципальное образование","Городской округ Иваново (24701000)","Указывается наименование и код муниципального района, муниципального образования в соответствии с Общероссийским классификатором территорий муниципальных образований (далее - ОКТМО), входящего в муниципальный район, на территории которого организация оказывает услуги по регулируемому виду деятельности.\nВ случае оказания услуг по регулируемому виду деятельности на территории нескольких муниципальных районов (муниципальных образований) данные по каждому их них указываются в отдельной строке."]
[]
[null,null,null,null,"  1 Информация по данной форме публикуется при раскрытии информации по каждой из форм."]

{"sheet":"Форма 4.5","index":9,"n_rows":100,"n_cols":13,"rows_kept":100,"cut":false,"hidden":true,"merged":[[4,5,4,8],[99,6,99,12],[97,6,97,12],[7,8,7,10],[6,12,8,12],[6,5,6,11],[98,6,98,12],[85,1,89,1],[90,1,94,1],[7,5,8,5],[7,6,8,6],[7,7,8,7],[19,1,21,1],[75,1,77,1],[80,1,84,1],[22,1,24,1]]}
[]
[]
[]
[]
[null,null,null,null,null,"Информация об инвестиционных программах1"]
[]
[null,null,null,null,null,"Параметры формы",null,null,null,null,null,null,"Описание параметров формы"]
[null,null,null,null,null,"№ п/п","Наименование параметра","Единица измерения"]
[null,null,null,null,null,null,null,null,"Инвестиционная программа в целом","Мероприятие2","Добавить мероприятие"]
[null,null,null,null,null,"1","2","3","4","4.0"]
[null,null,null,null,null,1,"Наименование инвестиционной программы/мероприятия","x"]
[null,null,null,null,null,2,"Дата утверждения инвестиционной программы","x",null,"x",null,null,"Дата утверждения инвестиционной программы указывается в виде «ДД.ММ.ГГГГ»."]
[null,null,null,null,null,"2.1","Дата изменения инвестиционной программы","x",null,"x",null,null,"Дата изменения инвестиционной программы указывается (в случае наличия изменения) в виде «ДД.ММ.ГГГГ»."]
[null,null,null,null,null,"3","Цель инвестиционной программы","x",null,"x",null,null,"Цель инвестиционной программы определяется из перечня: Автоматизация (с уменьшением штата); Уменьшение удельных затрат (повышение коэффициента полезного действия); Уменьшение издержек на производство; Снижение аварийности; Прочее\nВозможен выбор нескольких пунктов."]
[null,null,null,null,null,"4","Наименование уполномоченного органа, утвердившего программу","x",null,"x",null,null,"Указывается уполномоченный в соответствии с законодательством Российской Федерации орган власти, утвердивший инвестиционную программу."]
[null,null,null,null,null,"5","Наименование органа местного самоуправления, согласовавшего инвестиционную программу","x",null,"x"]
[null,null,null,null,null,"6","Срок начала реализации инвестиционной программы/мероприятия","x",null,null,null,null,"Срок начала реализации инвестиционной программы/мероприятия указывается в виде «ДД.ММ.ГГГГ»."]
[null,null,null,null,null,"7","Срок окончания реализации инвестиционной программы/мероприятия","x",null,null,null,null,"Срок окончания реализации инвестиционной программы/мероприятия указывается в виде «ДД.ММ.ГГГГ»."]
[null,null,null,null,null,"8","Потребность в финансовых средствах, необходимых для реализации инвестиционной программы, в том числе с разбивкой по годам, мероприятиям и источникам финансирования инвестиционной программы:","тыс. руб.",{"$f":"SUMIF(List06_flag_year,\"y\",I20:I26)","v":0},{"$f":"SUMIF(List06_flag_year,\"y\",J20:J26)","v":0},null,null,"Указывается суммарная потребность в финансовых средствах, необходимых для реализации инвестиционной программы, по всем источникам финансирования."]
[null,"8.0",null,null,null,{"$f":"B20","v":"8.0"},null,"тыс. руб.",{"$f":"SUM(I21:I22)","v":0},{"$f":"SUM(J21:J22)","v":0},"y",null,"Год реализации инвестиционной программы/мероприятия должен содержаться в сроке реализации инвестиционной программы, определенном в пунктах 6 и 7 данной формы.\nВ случае реализации инвестиционной программы/мероприятия в течение нескольких лет информация по каждому году указывается в отдельных строках."]
[null,null,1,null,null,{"$f":"B20&\".\"&C21","v":"8.0.1"},null,"тыс. руб.",null,null,"i",null,"Вид источника финансирования определяется из перечня: Кредиты банков; Кредиты иностранных банков; Заемные средства др. организаций; Федеральный бюджет; Бюджет субъекта Российской Федерации; Бюджет муниципального образования; Средства внебюджетных фондов; Прибыль, направленная на инвестиции; Амортизация; Инвестиционная надбавка к тарифу; Плата за подключение (технологическое присоединение);  Прочие средства.\nВ случае наличия нескольких источников финансирования информация по каждому из них указывается в отдельных строках."]
[null,null,null,null,null,null,"Добавить источники"]
[null,"8.1",null,null,null,{"$f":"B23","v":"8.1"},null,"тыс. руб.",{"$f":"SUM(I24:I25)","v":0},{"$f":"SUM(J24:J25)","v":0},"y",null,"Год реализации инвестиционной программы/мероприятия должен содержаться в сроке реализации инвестиционной программы, определенном в пунктах 6 и 7 данной формы.\nВ случае реализации инвестиционной программы/мероприятия в течение нескольких лет информация по каждому году указывается в отдельных строках."]
[null,null,1,null,null,{"$f":"B23&\".\"&C24","v":"8.1.1"},null,"тыс. руб.",null,null,"i",null,"Вид источника финансирования определяется из перечня: Кредиты банков; Кредиты иностранных банков; Заемные средства др. организаций; Федеральный бюджет; Бюджет субъекта Российской Федерации; Бюджет муниципального образования; Средства внебюджетных фондов; Прибыль, направленная на инвестиции; Амортизация; Инвестиционная надбавка к тарифу; Плата за подключение (технологическое присоединение);  Прочие средства.\nВ случае наличия нескольких источников финансирования информация по каждому из них указывается в отдельных строках."]
[null,null,null,null,null,null,"Добавить источники"]
[null,null,null,null,null,null,"Добавить год"]
[null,null,null,null,null,"9","Целевые показатели инвестиционной программы","x","x","x"]
[null,null,null,null,null,"9.1","Срок окупаемости","x","x","x"]
[null,null,null,null,null,"9.1.1","Факт","лет"]
[null,null,null,null,null,"9.1.2","План","лет"]
[null,null,null,null,null,"9.2","Перебои в снабжении потребителей","x","x","x"]
[null,null,null,null,null,"9.2.1","Факт","час./чел.",null,null,null,null,"Указывается фактическое значение отношения суммы произведений продолжительности отключений и количества пострадавших потребителей от каждого из этих отключений к количеству потребителей, проживающих в домах, в которых проходили отключения в отчетном периоде."]
[null,null,null,null,null,"9.2.2","План","час./чел.",null,null,null,null,"Указывается плановое значение отношения суммы произведений продолжительности отключений и количества пострадавших потребителей от каждого из этих отключений к количеству потребителей, проживающих в домах, в которых проходили отключения в отчетном периоде."]
[null,null,null,null,null,"9.3","Продолжительность (бесперебойность) поставки товаров и услуг","x","x","x"]
[null,null,null,null,null,"9.3.1","Факт","час./день",null,null,null,null,"Указывается фактическое значение отношения количества часов предоставления услуг к количеству календарных дней в отчетном периоде."]
[null,null,null,null,null,"9.3.2","План","час./день",null,null,null,null,"Указывается плановое значение отношения количества часов предоставления услуг к количеству календарных дней в отчетном периоде."]
[null,null,null,null,null,"9.4","Доля потерь и неучтенного потребления ","x","x","x"]
[null,null,null,null,null,"9.4.1","Факт","%",null,null,null,null,"Указывается фактическое значение доли потерь и неучтенного тепловой энергии в общем объеме тепла, поданной в тепловую в отчетном периоде."]
[null,null,null,null,null,"9.4.2","План","%",null,null,null,null,"Указывается плановое значение доли потерь и неучтенного тепловой энергии в общем объеме тепла, поданной в тепловую в отчетном периоде."]
[null,null,null,null,null,"9.5","Коэффициент потерь","x","x","x"]
[null,null,null,null,null,"9.5.1","Факт","Гкал/км",null,null,null,null,"Указывается фактическое значение коэффициента потерь тепловой энергии."]
[null,null,null,null,null,"9.5.2","План","Гкал/км",null,null,null,null,"Указывается плановое значение коэффициента потерь тепловой энергии."]
[null,null,null,null,null,"9.6","Износ систем коммунальной инфраструктуры","x","x","x"]
[null,null,null,null,null,"9.6.1","Факт","%"]
[null,null,null,null,null,"9.6.2","План","%"]
[null,null,null,null,null,"9.7","Износ оборудования производства (котлы)","x","x","x"]
[null,null,null,null,null,"9.7.1","Факт","%"]
[null,null,null,null,null,"9.7.2","План","%"]
[null,null,null,null,null,"9.8","Износ оборудования передачи тепловой энергии (сети)","x","x","x"]
[null,null,null,null,null,"9.8.1","Факт","%"]
[null,null,null,null,null,"9.8.2","План","%"]
[null,null,null,null,null,"9.9","Удельный вес сетей, нуждающихся в замене","x","x","x"]
[null,null,null,null,null,"9.9.1","Факт","%"]
[null,null,null,null,null,"9.9.2","План","%"]
[null,null,null,null,null,"9.10","Обеспеченность потребления товаров и услуг приборами учета","x","x","x"]
[null,null,null,null,null,"9.10.1","Факт","%"]
[null,null,null,null,null,"9.10.2","План","%"]
[null,null,null,null,null,"9.11","Расход топлива","x","x","x"]
[null,null,null,null,null,"9.11.1","Факт","т усл.топл/Гкал"]
[null,null,null,null,null,"9.11.2","План","т усл.топл/Гкал"]
[null,null,null,null,null,"9.12","Расход электроэнергии на выработку","x","x","x"]
[null,null,null,null,null,"9.12.1","Факт","кВт.ч/Гкал"]
[null,null,null,null,null,"9.12.2","План","кВт.ч/Гкал"]
[null,null,null,null,null,"9.13","Расход электроэнергии на передачу","x","x","x"]
[null,null,null,null,null,"9.13.1","Факт","кВт.ч/Гкал"]
[null,null,null,null,null,"9.13.2","План","кВт.ч/Гкал"]
[null,null,null,null,null,"9.14","Количество аварий (с учетом котельных)","x","x","x"]
[null,null,null,null,null,"9.14.1","Факт","ед.",null,null,null,null,"Указывается фактическое значение количества аварий (с учетом котельных). "]
[null,null,null,null,null,"9.14.2","План","ед.",null,null,null,null,"Указывается плановое значение количества аварий (с учетом котельных)."]
[null,null,null,null,null,"9.15","Количество аварий на тепловых сетях","x","x","x"]
[null,null,null,null,null,"9.15.1","Факт","ед./км",null,null,null,null,"Указывается фактическое значение отношения количества аварий на тепловых сетях к протяженности сетей в отчетном периоде."]
[null,null,null,null,null,"9.15.2","План","ед./км",null,null,null,null,"Указывается плановое значение отношения количества аварий на тепловых сетях к протяженности сетей в отчетном периоде."]
[null,null,null,null,null,"9.16","Производительность труда","x","x","x",null,null,"В случае наличия дополнительных целевых показателей инвестиционной программы информация по ним указывается в отдельных строках."]
[null,null,null,null,null,"9.16.1","Факт","тыс. руб./чел.",null,null,null,null,"Указывается фактическое значение отношение фонда оплаты труда к численности всех рабочих основного вида деятельности организации.  \nВ число рабочих основного вида деятельности включаются рабочие, занятые на производственных процессах по тепловым сетям."]
[null,null,null,null,null,"9.16.2","План","тыс. руб./чел.",null,null,null,null,"Указывается плановое значение отношение фонда оплаты труда к численности всех рабочих основного вида деятельности организации.  \nВ число рабочих основного вида деятельности включаются рабочие, занятые на производственных процессах по тепловым сетям."]
[null,"9.16",null,null,null,{"$f":"B76","v":"9.16"},null,null,"x","x"]
[null,null,null,null,null,{"$f":"B76&\".1\"","v":"9.16.1"},"Факт",{"$f":"IF(H76=\"\",\"x\",H76)","v":"x"}]
[null,null,null,null,null,{"$f":"B76&\".2\"","v":"9.16.2"},"План",{"$f":"IF(H76=\"\",\"x\",H76)","v":"x"}]
[null,null,null,null,null,null,"Добавить показатель"]
[null,"print",null,null,null,"10","Использование инвестиционных средств за отчетный период","x","x","x"]
[null,"10.0",null,null,null,{"$f":"B81","v":"10.0"},"Использовано инвестиционных средств всего в отчетном периоде, в том числе:","тыс. руб.",{"$f":"SUM(I82:I85)","v":0},{"$f":"SUM(J82:J85)","v":0},null,null,"Указывается сумма использованных инвестиционных средства по всем источникам финансирования в отчетном периоде."]
[null,null,null,null,null,{"$f":"B81&\".1\"","v":"10.0.1"},"I квартал","тыс. руб.",{"$f":"SUMIF($G$86:$G$96,$G82,I$86:I$96)","v":0},0,null,null,"Указывается сумма использованных инвестиционных средств в I квартале отчетного периода по всем источникам финансирования."]
[null,null,null,null,null,{"$f":"B81&\".2\"","v":"10.0.2"},"II квартал","тыс. руб.",0,0,null,null,"Указывается сумма использованных инвестиционных средств в II квартале отчетного периода по всем источникам финансирования."]
[null,null,null,null,null,{"$f":"B81&\".3\"","v":"10.0.3"},"III квартал","тыс. руб.",0,0,null,null,"Указывается сумма использованных инвестиционных средств в III квартале отчетного периода по всем источникам финансирования."]
[null,null,null,null,null,{"$f":"B81&\".4\"","v":"10.0.4"},"IV квартал","тыс. руб.",0,0,null,null,"Указывается сумма использованных инвестиционных средств в IV квартале отчетного периода по всем источникам финансирования."]
[null,"10.0",null,null,null,{"$f":"B86","v":"10.0"},null,"тыс. руб.",{"$f":"SUM(I87:I90)","v":0},{"$f":"SUM(J87:J90)","v":0},{"$f":"G86","v":0},null,"Вид источника финансирования определяется из перечня: Кредиты банков; Кредиты иностранных банков; Заемные средства др. организаций; Федеральный бюджет; Бюджет субъекта Российской Федерации; Бюджет муниципального образования; Средства внебюджетных фондов; Прибыль, направленная на инвестиции; Амортизация; Инвестиционная надбавка к тарифу; Плата за подключение (технологическое присоединение); Прочие средства.\nВ случае наличия нескольких источников финансирования информация по каждому из них указывается в отдельных строках."]
[null,null,null,null,null,{"$f":"B86&\".1\"","v":"10.0.1"},"I квартал","тыс. руб."]
[null,null,null,null,null,{"$f":"B86&\".2\"","v":"10.0.2"},"II квартал","тыс. руб."]
[null,null,null,null,null,{"$f":"B86&\".3\"","v":"10.0.3"},"III квартал","тыс. руб."]
[null,null,null,null,null,{"$f":"B86&\".4\"","v":"10.0.4"},"IV квартал","тыс. руб."]
[null,"10.1",null,null,null,{"$f":"B91","v":"10.1"},null,"тыс. руб.",{"$f":"SUM(I92:I95)","v":0},{"$f":"SUM(J92:J95)","v":0},{"$f":"G91","v":0},null,"Вид источника финансирования определяется из перечня: Кредиты банков; Кредиты иностранных банков; Заемные средства др. организаций; Федеральный бюджет; Бюджет субъекта Российской Федерации; Бюджет муниципального образования; Средства внебюджетных фондов; Прибыль, направленная на инвестиции; Амортизация; Инвестиционная надбавка к тарифу; Плата за подключение (технологическое присоединение); Прочие средства.\nВ случае наличия нескольких источников финансирования информация по каждому из них указывается в отдельных строках."]
[null,null,null,null,null,{"$f":"B91&\".1\"","v":"10.1.1"},"I квартал","тыс. руб."]
[null,null,null,null,null,{"$f":"B91&\".2\"","v":"10.1.2"},"II квартал","тыс. руб."]
[null,null,null,null,null,{"$f":"B91&\".3\"","v":"10.1.3"},"III квартал","тыс. руб."]
[null,null,null,null,null,{"$f":"B91&\".4\"","v":"10.1.4"},"IV квартал","тыс. руб."]
[null,null,null,null,null,null,"Добавить источники"]
[]
[null,null,null,null,null,1,"Информация по данной форме размещается в случае, если организация выполняет или планирует выполнение инвестиционной программы в отчетном периоде."]
[null,null,null,null,null,null,"Единой теплоснабжающей организацией, теплоснабжающей организацией и теплосетевой организацией в ценовых зонах теплоснабжения раскрывается информация об инвестиционных программах разрабатываемых и утверждаемых в отношении деятельности, при осуществлении которой расчеты за товары (услуги) в сфере теплоснабжения осуществляются по регулируемым ценам (тарифам) (за исключением деятельности по подключению (технологическому присоединению) к системе теплоснабжения)."]
[null,null,null,null,null,2,"В случае выполнения нескольких мероприятий информация по каждому из них указывается в отдельной колонке"]

{"sheet":"Форма 1.0.1 | Форма 4.9","index":10,"n_rows":32,"n_cols":7,"rows_kept":32,"cut":false,"hidden":true,"merged":[[20,3,20,5],[20,6,21,6],[31,4,31,5],[4,3,4,6],[5,3,5,6],[7,3,7,6],[8,3,8,5],[8,6,9,6],[19,3,19,6]]}
[null,null,null,null,null,null,4]
[]
[]
[]
[null,null,null,"Форма 1.0.1 Основные параметры раскрываемой информации 1"]
[]
[]
[null,null,22,"Форма 1.0.1"]
[null,null,null,"Параметры формы",null,null,"Описание параметров формы"]
["\\",null,null,"№ п/п",null,"Информация"]
[null,null,null,"1",2,3,4]
[null,null,null,1,"Дата заполнения/внесения изменений",{"$f":"IF(form_up_date=\"\",\"\",form_up_date)","v":"29.04.2019"},"Указывается календарная дата первичного заполнения или внесения изменений в форму в виде «ДД.ММ.ГГГГ»."]
[null,null,null,"2.1","Наименование централизованной системы коммунальной инфраструктуры","наименование отсутствует","Указывается наименование централизованной системы холодного водоснабжения/горячего водоснабжения/водоотведения/теплоснабжения, к которой относится размещаемая информация.\nВ случае наличия нескольких централизованных систем коммунальной инфраструктуры, информация по каждой из них указывается в отдельной строке. "]
[null,null,null,"3.1","Наименование регулируемого вида деятельности","Сбыт. Тепловая энергия","Указывается наименование вида регулируемой деятельности."]
[null,null,null,"4.1","Территория оказания услуги по регулируемому виду деятельности","x"]
[null,null,null,{"$f":"D15&\".1\"","v":"4.1.1"},"Субъект РФ",{"$f":"IF(region_name=\"\",\"\",region_name)","v":"Ивановская область"},"Указывается наименование субъекта Российской Федерации"]
[null,null,null,"4.1.1.1","муниципальный район","Городской округ Иваново","Указывается наименование муниципального района, на территории которого организация оказывает услуги по регулируемому виду деятельности."]
[null,null,null,"4.1.1.1.1","муниципальное образование","Городской округ Иваново (24701000)","Указывается наименование и код муниципального района, муниципального образования в соответствии с Общероссийским классификатором территорий муниципальных образований (далее - ОКТМО), входящего в муниципальный район, на территории которого организация оказывает услуги по регулируемому виду деятельности.\nВ случае оказания услуг по регулируемому виду деятельности на территории нескольких муниципальных районов (муниципальных образований) данные по каждому их них указываются в отдельной строке."]
[]
[null,null,25,"Форма 1.0.1"]
[null,null,null,"Параметры формы",null,null,"Описание параметров формы"]
["\\",null,null,"№ п/п",null,"Информация"]
[null,null,null,"1",2,3,4]
[null,null,null,1,"Дата заполнения/внесения изменений",{"$f":"IF(form_up_date=\"\",\"\",form_up_date)","v":"29.04.2019"},"Указывается календарная дата первичного заполнения или внесения изменений в форму в виде «ДД.ММ.ГГГГ»."]
[null,null,null,"2.1","Наименование централизованной системы коммунальной инфраструктуры","наименование отсутствует","Указывается наименование централизованной системы холодного водоснабжения/горячего водоснабжения/водоотведения/теплоснабжения, к которой относится размещаемая информация.\nВ случае наличия нескольких централизованных систем коммунальной инфраструктуры, информация по каждой из них указывается в отдельной строке. "]
[null,null,null,"3.1","Наименование регулируемого вида деятельности","Сбыт. Теплоноситель","Указывается наименование вида регулируемой деятельности."]
[null,null,null,"4.1","Территория оказания услуги по регулируемому виду деятельности","x"]
[null,null,null,{"$f":"D27&\".1\"","v":"4.1.1"},"Субъект РФ",{"$f":"IF(region_name=\"\",\"\",region_name)","v":"Ивановская область"},"Указывается наименование субъекта Российской Федерации"]
[null,null,null,"4.1.1.1","муниципальный район","Городской округ Иваново","Указывается наименование муниципального района, на территории которого организация оказывает услуги по регулируемому виду деятельности."]
[null,null,null,"4.1.1.1.1","муниципальное образование","Городской округ Иваново (24701000)","Указывается наименование и код муниципального района, муниципального образования в соответствии с Общероссийским классификатором территорий муниципальных образований (далее - ОКТМО), входящего в муниципальный район, на территории которого организация оказывает услуги по регулируемому виду деятельности.\nВ случае оказания услуг по регулируемому виду деятельности на территории нескольких муниципальных районов (муниципальных образований) данные по каждому их них указываются в отдельной строке."]
[]
[null,null,null,null,"  1 Информация по данной форме публикуется при раскрытии информации по каждой из форм."]

{"sheet":"Форма 4.9","index":11,"n_rows":14,"n_cols":8,"rows_kept":14,"cut":false,"hidden":true,"merged":[[4,3,4,6],[6,3,6,6],[6,7,7,7],[9,7,12,7]]}
[]
[]
[]
[]
[null,null,null,"Информация о способах приобретения, стоимости и объемах товаров, необходимых для производства товаров и (или) оказания услуг"]
[]
[null,null,null,"Параметры формы",null,null,null,"Описание параметров формы"]
[null,null,null,"№ п/п","Наименование параметра","Информация","Ссылка на документ"]
[null,null,null,"1","2","3","4","5"]
[null,null,null,"1","Сведения о правовых актах, регламентирующих правила закупки (положение о закупках) в организации",null,null,"В колонке «Информация» указывается описательная информация, характеризующая размещаемые данные.\nВ колонке «Ссылка на документ» указывается либо ссылка на документ, предварительно загруженный в хранилище файлов ФГИС ЕИАС, либо ссылка на официальный сайт в сети «Интернет», на котором размещена информация."]
[null,null,null,"2","Сведения о месте размещения положения о закупках организации"]
[null,null,null,"3","Сведения о планировании закупочных процедур"]
[null,null,null,"4","Сведения о результатах проведения закупочных процедур"]
[null,null,null,null,"Добавить сведения",null,null,"В случае наличия дополнительных сведений о способах приобретения, стоимости и объемах товаров, необходимых для производства товаров и (или) оказания услуг организацией, информация по ним указывается в отдельных строках."]

{"sheet":"Форма 1.0.2","index":12,"n_rows":15,"n_cols":13,"rows_kept":15,"cut":false,"hidden":true,"merged":[[11,10,12,10],[14,4,14,9],[4,3,4,9],[7,3,7,9],[7,10,9,10],[8,3,9,3],[8,4,8,5],[8,6,8,9]]}
[]
[]
[]
[]
[null,null,null,"Форма 1.0.2 Информация о публикации в печатных изданиях 2"]
[]
[]
[null,null,null,"Параметры формы",null,null,null,null,null,null,"Описание параметров формы"]
[null,null,null,"№ п/п","Форма публикации",null,"Официальное печатное издание"]
[null,null,null,null,"Номер","Наименование","Наименование","Номер","Дата выпуска","Ссылка на документ"]
[null,null,null,"1","2","3","4","5","6","7","8"]
["3","",null,"1",null,null,null,null,null,null,"В колонке «Дата выпуска» дата выпуска печатного издания указывается в виде «ДД.ММ.ГГГГ».\nВ колонке «Ссылка на документ» указывается ссылка на отсканированную копию печатного издания, предварительно загруженную в хранилище федеральной государственной информационной системы «Единая информационно-аналитическая система «Федеральный орган регулирования - региональные органы регулирования - субъекты регулирования» (далее – ФГИС ЕИАС), с опубликованной информацией.\nВ случае публикации информации в нескольких печатных изданиях информация по каждому из них указывается в отдельной строке.",null,{"$f":"IF(ISERROR(INDEX(kind_of_nameforms,MATCH(E12,kind_of_forms,0),1)),\"\",INDEX(kind_of_nameforms,MATCH(E12,kind_of_forms,0),1))","v":""}]
[null,null,null,null,"Добавить строку"]
[]
[null,null,null,null,"2 В данной форме публикуется информация по каждой из форм раскрытия, данные в которой относятся к муниципальному образованию, в котором отсутствует доступ в информационно-телекоммуникационную сеть «Интернет» (далее – сеть «Интернет»)."]

{"sheet":"Сведения об изменении","index":13,"n_rows":14,"n_cols":5,"rows_kept":14,"cut":false,"hidden":true,"merged":[[6,3,6,4],[7,3,7,4]]}
[]
[]
[]
[]
[]
[]
[null,null,null,"Сведения об изменениях в первоначально опубликованной информации"]
[]
[]
[null,null,null,"№ п/п","Сведения"]
[null,null,null,"1","2"]
[null,null,null,0]
[null,null,null,1]
[null,null,null,null,"Добавить строку"]

{"sheet":"Комментарии","index":14,"n_rows":13,"n_cols":5,"rows_kept":13,"cut":false,"hidden":false,"merged":[[6,3,6,4],[7,3,7,4]]}
[]
[]
[]
[]
[]
[]
[null,null,null,"Комментарии"]
[null,null,null,{"$f":"IF(org=0,\"Не определено\",org)","v":"АО \"ИГТСК\""}]
[]
[null,null,null,"№ п/п","Комментарий"]
[null,null,null,"1","2"]
[null,null,null,0]
[null,null,null,null,"Добавить"]

{"sheet":"modReestr","index":15,"n_rows":0,"n_cols":0,"rows_kept":0,"cut":false,"hidden":true,"merged":[]}

{"sheet":"modList13","index":16,"n_rows":0,"n_cols":0,"rows_kept":0,"cut":false,"hidden":true,"merged":[]}

{"sheet":"modList07","index":17,"n_rows":0,"n_cols":0,"rows_kept":0,"cut":false,"hidden":true,"merged":[]}

{"sheet":"AllSheetsInThisWorkbook","index":18,"n_rows":44,"n_cols":2,"rows_kept":44,"cut":false,"hidden":true,"merged":[]}
["Расчетные листы","Скрытые листы"]
["Инструкция","modProv"]
["Лог обновления","modReestr"]
["Титульный","modList13"]
["Территории","modList07"]
["Дифференциация","AllSheetsInThisWorkbook"]
["Форма 1.0.1 | Форма 4.3.1","modCheckCyan"]
["Форма 4.3.1","modInfo"]
["Форма 4.3.2","TEHSHEET"]
["Форма 4.4","modfrmSelectData"]
["Форма 4.5","modList06"]
["Форма 4.9","modList01"]
["Форма 1.0.2","modList05"]
["Сведения об изменении","modList08"]
["Комментарии","et_union_hor"]
["Проверка","et_union_vert"]
[null,"modList00"]
[null,"modList02"]
[null,"modList03"]
[null,"modList04"]
[null,"modList09"]
[null,"modHTTP"]
[null,"modfrmRegion"]
[null,"MR_LIST"]
[null,"REESTR_VT"]
[null,"REESTR_VED"]
[null,"modfrmReestrObj"]
[null,"DataOrg"]
[null,"modfrmReestr"]
[null,"modUpdTemplMain"]
[null,"REESTR_ORG"]
[null,"modClassifierValidate"]
[null,"modHyp"]
[null,"modfrmDateChoose"]
[null,"modComm"]
[null,"modThisWorkbook"]
[null,"REESTR_MO"]
[null,"REESTR_MO_FILTER"]
[null,"modfrmReestrMR"]
[null,"modServiceModule"]
[null,"modfrmCheckUpdates"]
[null,"REESTR_DS"]
[null,"REESTR_CHS"]
[null,"REESTR_LINK"]

{"sheet":"modCheckCyan","index":19,"n_rows":146,"n_cols":1,"rows_kept":146,"cut":false,"hidden":true,"merged":[]}
[{"$f":"IF(#REF!=\"\",1,0)","v":{"$error":"#REF!"}}]
[{"$f":"IF(#REF!=\"\",1,0)","v":{"$error":"#REF!"}}]
[{"$f":"IF(#REF!=\"\",1,0)","v":{"$error":"#REF!"}}]
[{"$f":"IF('Форма 4.9'!$F$10=\"\",1,0)","v":1}]
[{"$f":"IF('Форма 4.9'!$G$10=\"\",1,0)","v":1}]
[{"$f":"IF('Форма 4.9'!$F$11=\"\",1,0)","v":1}]
[{"$f":"IF('Форма 4.9'!$G$11=\"\",1,0)","v":1}]
[{"$f":"IF('Форма 4.9'!$F$12=\"\",1,0)","v":1}]
[{"$f":"IF('Форма 4.9'!$G$12=\"\",1,0)","v":1}]
[{"$f":"IF('Форма 4.9'!$F$13=\"\",1,0)","v":1}]
[{"$f":"IF('Форма 4.9'!$G$13=\"\",1,0)","v":1}]
[{"$f":"IF('Форма 1.0.2'!$E$12=\"\",1,0)","v":1}]
[{"$f":"IF('Форма 1.0.2'!$F$12=\"\",1,0)","v":1}]
[{"$f":"IF('Форма 1.0.2'!$G$12=\"\",1,0)","v":1}]
[{"$f":"IF('Форма 1.0.2'!$H$12=\"\",1,0)","v":1}]
[{"$f":"IF('Форма 1.0.2'!$I$12=\"\",1,0)","v":1}]
[{"$f":"IF('Форма 1.0.2'!$J$12=\"\",1,0)","v":1}]
[{"$f":"IF('Сведения об изменении'!$E$13=\"\",1,0)","v":1}]
[{"$f":"IF(#REF!=\"\",1,0)","v":{"$error":"#REF!"}}]
[{"$f":"IF(#REF!=\"\",1,0)","v":{"$error":"#REF!"}}]
[{"$f":"IF(#REF!=\"\",1,0)","v":{"$error":"#REF!"}}]
[{"$f":"IF(#REF!=\"\",1,0)","v":{"$error":"#REF!"}}]
[{"$f":"IF('Форма 4.3.1'!$G$29=\"\",1,0)","v":0}]
[{"$f":"IF('Форма 4.3.1'!$H$29=\"\",1,0)","v":0}]
[{"$f":"IF('Форма 4.3.1'!$G$31=\"\",1,0)","v":0}]
[{"$f":"IF('Форма 4.3.1'!$H$31=\"\",1,0)","v":0}]
[{"$f":"IF('Форма 4.3.1'!$G$39=\"\",1,0)","v":0}]
[{"$f":"IF('Форма 4.3.1'!$H$39=\"\",1,0)","v":0}]
[{"$f":"IF('Форма 4.3.1'!$G$40=\"\",1,0)","v":0}]
[{"$f":"IF('Форма 4.3.1'!$H$40=\"\",1,0)","v":0}]
[{"$f":"IF('Форма 4.3.1'!$G$41=\"\",1,0)","v":0}]
[{"$f":"IF('Форма 4.3.1'!$H$41=\"\",1,0)","v":0}]
[{"$f":"IF('Форма 4.3.1'!$G$42=\"\",1,0)","v":0}]
[{"$f":"IF('Форма 4.3.1'!$H$42=\"\",1,0)","v":0}]
[{"$f":"IF('Форма 4.3.1'!$G$43=\"\",1,0)","v":0}]
[{"$f":"IF('Форма 4.3.1'!$H$43=\"\",1,0)","v":0}]
[{"$f":"IF('Форма 4.3.1'!$G$44=\"\",1,0)","v":0}]
[{"$f":"IF('Форма 4.3.1'!$H$44=\"\",1,0)","v":0}]
[{"$f":"IF('Форма 4.3.1'!$G$45=\"\",1,0)","v":0}]
[{"$f":"IF('Форма 4.3.1'!$H$45=\"\",1,0)","v":0}]
[{"$f":"IF('Форма 4.3.1'!$G$46=\"\",1,0)","v":0}]
[{"$f":"IF('Форма 4.3.1'!$H$46=\"\",1,0)","v":0}]
[{"$f":"IF('Форма 4.3.1'!$G$47=\"\",1,0)","v":0}]
[{"$f":"IF('Форма 4.3.1'!$H$47=\"\",1,0)","v":0}]
[{"$f":"IF('Форма 4.3.1'!$G$48=\"\",1,0)","v":0}]
[{"$f":"IF('Форма 4.3.1'!$H$48=\"\",1,0)","v":0}]
[{"$f":"IF('Форма 4.3.1'!$G$49=\"\",1,0)","v":0}]
[{"$f":"IF('Форма 4.3.1'!$H$49=\"\",1,0)","v":0}]
[{"$f":"IF('Форма 4.3.1'!$G$50=\"\",1,0)","v":0}]
[{"$f":"IF('Форма 4.3.1'!$H$50=\"\",1,0)","v":0}]
[{"$f":"IF('Форма 4.3.1'!$G$51=\"\",1,0)","v":0}]
[{"$f":"IF('Форма 4.3.1'!$H$51=\"\",1,0)","v":0}]
[{"$f":"IF('Форма 4.3.1'!$G$52=\"\",1,0)","v":0}]
[{"$f":"IF('Форма 4.3.1'!$H$52=\"\",1,0)","v":0}]
[{"$f":"IF('Форма 4.3.1'!$G$53=\"\",1,0)","v":0}]
[{"$f":"IF('Форма 4.3.1'!$H$53=\"\",1,0)","v":0}]
[{"$f":"IF('Форма 4.3.1'!$G$54=\"\",1,0)","v":0}]
[{"$f":"IF('Форма 4.3.1'!$H$54=\"\",1,0)","v":0}]
[{"$f":"IF('Форма 4.3.1'!$G$55=\"\",1,0)","v":0}]
[{"$f":"IF('Форма 4.3.1'!$H$55=\"\",1,0)","v":0}]
[{"$f":"IF('Форма 4.3.1'!$G$56=\"\",1,0)","v":0}]
[{"$f":"IF('Форма 4.3.1'!$H$56=\"\",1,0)","v":0}]
[{"$f":"IF('Форма 4.3.1'!$G$70=\"\",1,0)","v":0}]
[{"$f":"IF('Форма 4.3.1'!$H$70=\"\",1,0)","v":0}]
[{"$f":"IF('Форма 4.3.1'!$G$71=\"\",1,0)","v":0}]
[{"$f":"IF('Форма 4.3.1'!$H$71=\"\",1,0)","v":0}]
[{"$f":"IF('Форма 4.3.1'!$G$72=\"\",1,0)","v":0}]
[{"$f":"IF('Форма 4.3.1'!$H$72=\"\",1,0)","v":0}]
[{"$f":"IF('Форма 4.3.1'!$G$73=\"\",1,0)","v":0}]
[{"$f":"IF('Форма 4.3.1'!$H$73=\"\",1,0)","v":0}]
[{"$f":"IF('Форма 4.3.1'!$G$74=\"\",1,0)","v":0}]
[{"$f":"IF('Форма 4.3.1'!$H$74=\"\",1,0)","v":0}]
[{"$f":"IF('Форма 4.3.1'!$G$75=\"\",1,0)","v":0}]
[{"$f":"IF('Форма 4.3.1'!$H$75=\"\",1,0)","v":0}]
[{"$f":"IF('Форма 4.3.1'!$G$76=\"\",1,0)","v":0}]
[{"$f":"IF('Форма 4.3.1'!$H$76=\"\",1,0)","v":0}]
[{"$f":"IF('Форма 4.3.1'!$G$77=\"\",1,0)","v":0}]
[{"$f":"IF('Форма 4.3.1'!$H$77=\"\",1,0)","v":0}]
[{"$f":"IF('Форма 4.3.1'!$G$78=\"\",1,0)","v":0}]
[{"$f":"IF('Форма 4.3.1'!$H$78=\"\",1,0)","v":0}]
[{"$f":"IF('Форма 4.3.1'!$G$79=\"\",1,0)","v":0}]
[{"$f":"IF('Форма 4.3.1'!$H$79=\"\",1,0)","v":0}]
[{"$f":"IF('Форма 4.3.1'!$G$82=\"\",1,0)","v":0}]
[{"$f":"IF('Форма 4.3.1'!$H$82=\"\",1,0)","v":0}]
[{"$f":"IF('Форма 4.3.1'!$G$83=\"\",1,0)","v":0}]
[{"$f":"IF('Форма 4.3.1'!$H$83=\"\",1,0)","v":0}]
[{"$f":"IF('Форма 4.3.1'!$G$85=\"\",1,0)","v":0}]
[{"$f":"IF('Форма 4.3.1'!$H$85=\"\",1,0)","v":0}]
[{"$f":"IF('Форма 4.3.1'!$G$86=\"\",1,0)","v":0}]
[{"$f":"IF('Форма 4.3.1'!$H$86=\"\",1,0)","v":0}]
[{"$f":"IF('Форма 4.3.1'!$G$87=\"\",1,0)","v":0}]
[{"$f":"IF('Форма 4.3.1'!$H$87=\"\",1,0)","v":0}]
[{"$f":"IF('Форма 4.3.1'!$G$88=\"\",1,0)","v":0}]
[{"$f":"IF('Форма 4.3.1'!$H$88=\"\",1,0)","v":0}]
[{"$f":"IF('Форма 4.3.1'!$G$89=\"\",1,0)","v":0}]
[{"$f":"IF('Форма 4.3.1'!$H$89=\"\",1,0)","v":0}]
[{"$f":"IF('Форма 4.3.1'!$G$90=\"\",1,0)","v":0}]
[{"$f":"IF('Форма 4.3.1'!$H$90=\"\",1,0)","v":0}]
[{"$f":"IF('Форма 4.3.1'!$G$91=\"\",1,0)","v":0}]
[{"$f":"IF('Форма 4.3.1'!$H$91=\"\",1,0)","v":0}]
[{"$f":"IF('Форма 4.3.1'!$G$92=\"\",1,0)","v":0}]
[{"$f":"IF('Форма 4.3.1'!$H$92=\"\",1,0)","v":0}]
[{"$f":"IF('Форма 4.3.1'!$G$93=\"\",1,0)","v":0}]
[{"$f":"IF('Форма 4.3.1'!$H$93=\"\",1,0)","v":0}]
[{"$f":"IF('Форма 4.3.1'!$G$94=\"\",1,0)","v":0}]
[{"$f":"IF('Форма 4.3.1'!$H$94=\"\",1,0)","v":0}]
[{"$f":"IF('Форма 4.3.1'!$G$97=\"\",1,0)","v":0}]
[{"$f":"IF('Форма 4.3.1'!$H$97=\"\",1,0)","v":0}]
[{"$f":"IF('Форма 4.3.1'!$G$100=\"\",1,0)","v":0}]
[{"$f":"IF('Форма 4.3.1'!$H$100=\"\",1,0)","v":0}]
[{"$f":"IF('Форма 4.3.1'!$G$103=\"\",1,0)","v":0}]
[{"$f":"IF('Форма 4.3.1'!$H$103=\"\",1,0)","v":0}]
[{"$f":"IF('Форма 4.3.1'!$G$104=\"\",1,0)","v":0}]
[{"$f":"IF('Форма 4.3.1'!$H$104=\"\",1,0)","v":0}]
[{"$f":"IF('Форма 4.4'!$I$11=\"\",1,0)","v":0}]
[{"$f":"IF('Форма 4.4'!$G$12=\"\",1,0)","v":0}]
[{"$f":"IF('Форма 4.4'!$I$12=\"\",1,0)","v":0}]
[{"$f":"IF('Форма 4.4'!$G$13=\"\",1,0)","v":0}]
[{"$f":"IF('Форма 4.4'!$I$13=\"\",1,0)","v":0}]
[{"$f":"IF('Форма 4.4'!$G$18=\"\",1,0)","v":0}]
[{"$f":"IF('Форма 4.4'!$I$18=\"\",1,0)","v":0}]
[{"$f":"IF('Форма 4.4'!$G$19=\"\",1,0)","v":0}]
[{"$f":"IF('Форма 4.4'!$I$19=\"\",1,0)","v":0}]
[{"$f":"IF('Форма 4.4'!$G$11=\"\",1,0)","v":0}]
[{"$f":"IF('Форма 4.5'!$I$11=\"\",1,0)","v":1}]
[{"$f":"IF('Форма 4.5'!$I$12=\"\",1,0)","v":1}]
[{"$f":"IF('Форма 4.5'!$I$15=\"\",1,0)","v":1}]
[{"$f":"IF('Форма 4.5'!$I$16=\"\",1,0)","v":1}]
[{"$f":"IF('Форма 4.5'!$I$17=\"\",1,0)","v":1}]
[{"$f":"IF('Форма 4.5'!$I$18=\"\",1,0)","v":1}]
[{"$f":"IF('Форма 4.5'!$G$23=\"\",1,0)","v":1}]
[{"$f":"IF('Форма 4.5'!$G$24=\"\",1,0)","v":1}]
[{"$f":"IF('Форма 4.5'!$I$24=\"\",1,0)","v":1}]
[{"$f":"IF('Форма 4.5'!$G$91=\"\",1,0)","v":1}]
[{"$f":"IF('Форма 4.5'!$I$92=\"\",1,0)","v":1}]
[{"$f":"IF('Форма 4.5'!$I$93=\"\",1,0)","v":1}]
[{"$f":"IF('Форма 4.5'!$I$94=\"\",1,0)","v":1}]
[{"$f":"IF('Форма 4.5'!$I$95=\"\",1,0)","v":1}]
[{"$f":"IF('Форма 4.5'!$I$14=\"\",1,0)","v":1}]
[{"$f":"IF('Форма 4.3.1'!$E$62=\"\",1,0)","v":0}]
[{"$f":"IF('Форма 4.3.1'!$E$63=\"\",1,0)","v":0}]
[{"$f":"IF('Форма 4.3.1'!$E$64=\"\",1,0)","v":0}]
[{"$f":"IF('Форма 4.3.1'!$E$65=\"\",1,0)","v":0}]
[{"$f":"IF('Форма 4.3.1'!$E$66=\"\",1,0)","v":0}]
[{"$f":"IF('Форма 4.3.1'!$E$67=\"\",1,0)","v":0}]
[{"$f":"IF('Форма 4.3.1'!$E$68=\"\",1,0)","v":0}]

{"sheet":"modInfo","index":20,"n_rows":11,"n_cols":2,"rows_kept":11,"cut":false,"hidden":true,"merged":[[4,3,4,10],[0,3,0,10],[1,3,1,10],[2,3,2,10],[3,3,3,10]]}
[null,"Территории"]
[1,"Наименование территории оказания услуг для целей идентификации"]
[2,"Муниципальные районы и муниципальные образования, на территории которых осуществляется оказание услуг"]
[null,"Дифференциация"]
[1,"В случае, если регулируемая организация осуществляет несколько видов деятельности, информация о которых подлежит раскрытию, информация по каждому виду деятельности раскрывается отдельно."]
[2,"Поле заполняется выбором значений из списка. Если значений для выбора нет - убедитесь, что лист \"Территории\" заполнен."]
[3,"Условное наименование централизованной системы коммунальной инфраструктуры для целей идентификации."]
[4,"В случае, если регулируемыми организациями оказываются услуги по нескольким технологически не связанным между собой  централизованным системам коммунальной инфраструктуры и если в отношении указанных централизованных систем устанавливаются различные тарифы, то информация раскрывается отдельно по каждой централизованной системе коммунальной инфраструктуры."]
[null,"Сведения об изменении"]
[1,"Лист заполняется в случае, если на Титульном листе в поле \"Тип отчета\" выбрано значение «Изменения в раскрытой ранее информации»."]
[null,"Нет доступных обновлений, версия отчёта актуальна"]

{"sheet":"TEHSHEET","index":21,"n_rows":87,"n_cols":29,"rows_kept":87,"cut":false,"hidden":true,"merged":[[0,18,0,19],[0,21,0,22],[0,27,0,28]]}
["REGION",null,"year_list","logical","Месяц\n(MONTH)","Квартал\n(QUARTER)","Месяц\n(kind_of_publication)","Единица измерения объема оказываемых услуг ГВС\n/kind_of_unit_GVS/","Вид тарифа\n/list_of_tariff/","mr_id","версия шаблона\n (DocProp_Version)","0.1","Тип отчета\ndata_type",null,"Источники финансирования\n/source_of_funding/","цель инвестиционной программы /kind_of_purchase_method/",null,null,"Перечень форм\n(kind_of_forms)",null,null,"цель инвестиционной программы /objective_of_IPR/",null,null,null,"Тип организации\nkind_of_org_type",null,"Виды топлива\n/kind_of_fuels/"]
["Алтайский край",null,2017,"да","январь","I квартал","На официальном сайте организации","тыс.куб.м/сутки",null,52,"код шаблона\n(DocProp_TemplateCode)","FAS.JKH.OPEN.INFO.BALANCE.HVS","первичное раскрытие информации",null,"кредиты банков","Торги/аукционы",null,null,"Форма 1.0.1","Основные параметры раскрываемой информации",null,"автоматизация (с уменьшением штата)",false,null,null,"Регулируемая организация",null,"газ природный по регулируемой цене","тыс м3"]
["Амурская область",null,2018,"нет","февраль","II квартал","На сайте регулирующего органа","Гкал/час","Без дифференциации","sys_id","сфера\n(TSphere)","ХВС","изменения в раскрытой ранее информации",null,"кредиты иностранных банков","Прямые договора без торгов",null,null,"Форма 4.3.1","Информация об основных показателях финансово-хозяйственной деятельности регулируемой организации, включая структуру основных производственных затрат (в части регулируемой деятельности),  информация об основных технико-экономических параметрах деятельности единой теплоснабжающей организации, теплоснабжающей организации и теплосетевой организации в ценовых зонах теплоснабжения",null,"уменьшение удельных затрат (повышение КПД)",false,null,null,"Единая теплоснабжающая организация в ценовой зоне теплоснабжения",null,"газ природный по нерегулируемой цене","тыс м3"]
["Архангельская область",null,2019,null,"март","III квартал",null,"куб.м/час",null,104,"сфера(латиница)\n(TSphere_trans)","VS",null,null,"заемные средства др. организаций","Прочее",null,null,"Форма 4.3.2","Информация о расходах на капитальный и текущий ремонт основных производственных средств, расходах на услуги производственного характера",null,"уменьшение издержек на производство",false,null,null,"Теплоснабжающая организация в ценовой зоне теплоснабжения",null,"газ сжиженный","кг"]
["Астраханская область",null,2020,null,"апрель","IV квартал",null,null,null,null,"сфера расширено\n(TSphere_full)",null,null,null,"федеральный бюджет",null,null,null,"Форма 4.4","Информация об основных потребительских характеристиках регулируемых товаров и услуг регулируемой организации и их соответствии установленным требованиям",null,"снижение аварийности",false,null,null,"Теплосетевая организация в ценовой зоне теплоснабжения",null,"газовый конденсат","тонны"]
["Белгородская область",null,null,null,"май",null,null,null,null,null,null,null,null,null,"бюджет субъекта Российской Федерации",null,null,null,"Форма 4.5","Информация об инвестиционных программах",null,"прочее",false,null,null,null,null,"гшз","тонны"]
["Брянская область",null,null,null,"июнь",null,null,null,null,null,null,null,null,null,"бюджет муниципального образования",null,null,null,"Форма 4.9","Информация о способах приобретения, стоимости и объемах товаров, необходимых для производства товаров и (или) оказания услуг",null,null,null,null,null,null,null,"мазут","тонны"]
["Владимирская область",null,null,null,"июль",null,null,null,null,null,"true",null,null,null,"средства внебюджетных фондов",null,null,null,null,null,null,null,null,null,null,null,null,"нефть","тонны"]
["Волгоградская область",null,null,null,"август",null,null,null,null,null,null,null,null,null,"прибыль, направленная на инвестиции",null,null,null,null,null,null,null,null,null,null,null,null,"дизельное топливо","тонны"]
["Вологодская область",null,null,null,"сентябрь",null,null,null,null,null,null,null,null,null,"амортизация",null,null,null,null,null,null,null,null,null,null,null,null,"уголь бурый","тонны"]
["Воронежская область",null,null,null,"октябрь",null,null,null,null,null,null,null,null,null,"инвестиционная надбавка к тарифу",null,null,null,null,null,null,null,null,null,null,null,null,"уголь каменный","тонны"]
["г.Байконур",null,null,null,"ноябрь",null,null,null,null,null,null,null,null,null,"плата за подключение (технологическое присоединение)",null,null,null,null,null,null,null,null,null,null,null,null,"торф","тонны"]
["г. Москва",null,null,null,"декабрь",null,null,null,null,null,null,null,null,null,"прочие средства",null,null,null,null,null,null,null,null,null,null,null,null,"дрова","м3"]
["г.Санкт-Петербург",null,null,null,null,null,null,null,null,null,null,null,null,null,null,null,null,null,null,null,null,null,null,null,null,null,null,"опил","м3"]
["г.Севастополь",null,null,null,null,null,null,null,null,null,null,null,null,null,null,null,null,null,null,null,null,null,null,null,null,null,null,"отходы березовые","м3"]
["Еврейская автономная область",null,null,null,null,null,"Текущая дата",null,null,null,null,null,null,null,null,null,null,null,null,null,null,null,null,null,null,null,null,"отходы осиновые","м3"]
["Забайкальский край",null,"Организация",{"$f":"IF(f_year = \"\",\"\", \"01.01.\"&f_year)","v":"01.01.2018"},{"$f":"IF(f_year = \"\",\"\", \"31.12.\"& f_year)","v":"31.12.2018"},null,"29.04.2019 19:11:44",null,null,null,null,null,null,null,null,null,null,null,null,null,null,null,null,null,null,null,null,"печное топливо","тонны"]
["Ивановская область",null,null,null,null,null,null,null,null,null,null,null,null,null,null,null,null,null,null,null,null,null,null,null,null,null,null,"пилеты","тонны"]
["Иркутская область",null,null,null,null,null,"Признак изменения данных на листе Доступ к товарам и услугам",null,null,null,null,null,null,null,null,null,null,null,null,null,null,null,null,null,null,null,null,"смола","тонны"]
["Кабардино-Балкарская республика",null,"Виды деятельности",null,null,null,true,null,null,null,null,null,null,null,null,null,null,null,null,null,null,null,null,null,null,null,null,"щепа","м3"]
["Калининградская область",null,null,null,null,null,null,null,null,null,null,null,null,null,null,null,null,null,null,null,null,null,null,null,null,null,null,"горючий сланец","тонны"]
["Калужская область",null,null,null,null,null,null,null,null,null,null,null,null,null,null,null,null,null,null,null,null,null,null,null,null,null,null,"керосин","тонны"]
["Камчатский край",null,null,null,null,null,null,null,null,null,null,null,null,null,null,null,null,null,null,null,null,null,null,null,null,null,null,"кислородно-водородная смесь","тыс м3"]
["Карачаево-Черкесская республика",null,null,null,null,null,null,null,null,null,null,null,null,null,null,null,null,null,null,null,null,null,null,null,null,null,null,"электроэнергия (НН)","тыс кВт.ч"]
["Кемеровская область",null,null,null,null,null,null,null,null,null,null,null,null,null,null,null,null,null,null,null,null,null,null,null,null,null,null,"электроэнергия (СН1)","тыс кВт.ч"]
["Кировская область",null,null,null,null,null,null,null,null,null,null,null,null,null,null,null,null,null,null,null,null,null,null,null,null,null,null,"электроэнергия (СН2)","тыс кВт.ч"]
["Костромская область",null,null,null,null,null,null,null,null,null,null,null,null,null,null,null,null,null,null,null,null,null,null,null,null,null,null,"электроэнергия (ВН)","тыс кВт.ч"]
["Краснодарский край",null,null,null,null,null,null,null,null,null,null,null,null,null,null,null,null,null,null,null,null,null,null,null,null,null,null,"мощность","тыс кВт"]
["Красноярский край",null,null,null,null,null,null,null,null,null,null,null,null,null,null,null,null,null,null,null,null,null,null,null,null,null,null,"прочее"]
["Курганская область"]
["Курская область"]
["Ленинградская область"]
["Липецкая область"]
["Магаданская область"]
["Московская область"]
["Мурманская область"]
["Ненецкий автономный округ"]
["Нижегородская область"]
["Новгородская область"]
["Новосибирская область"]
["Омская область"]
["Оренбургская область"]
["Орловская область"]
["Пензенская область"]
["Пермский край"]
["Приморский край"]
["Псковская область"]
["Республика Адыгея"]
["Республика Алтай"]
["Республика Башкортостан"]
["Республика Бурятия"]
["Республика Дагестан"]
["Республика Ингушетия"]
["Республика Калмыкия"]
["Республика Карелия"]
["Республика Коми"]
["Республика Крым"]
["Республика Марий Эл"]
["Республика Мордовия"]
["Республика Саха (Якутия)"]
["Республика Северная Осетия-Алания"]
["Республика Татарстан"]
["Республика Тыва"]
["Республика Хакасия"]
["Ростовская область"]
["Рязанская область"]
["Самарская область"]
["Саратовская область"]
["Сахалинская область"]
["Свердловская область"]
["Смоленская область"]
["Ставропольский край"]
["Тамбовская область"]
["Тверская область"]
["Томская область"]
["Тульская область"]
["Тюменская область"]
["Удмуртская республика"]
["Ульяновская область"]
["Хабаровский край"]
["Ханты-Мансийский автономный округ"]
["Челябинская область"]
["Чеченская республика"]
["Чувашская республика"]
["Чукотский автономный округ"]
["Ямало-Ненецкий автономный округ"]
["Ярославская область"]

{"sheet":"modfrmSelectData","index":22,"n_rows":0,"n_cols":0,"rows_kept":0,"cut":false,"hidden":true,"merged":[]}

{"sheet":"modList06","index":23,"n_rows":0,"n_cols":0,"rows_kept":0,"cut":false,"hidden":true,"merged":[]}

{"sheet":"modList01","index":24,"n_rows":0,"n_cols":0,"rows_kept":0,"cut":false,"hidden":true,"merged":[]}

{"sheet":"modList08","index":25,"n_rows":0,"n_cols":0,"rows_kept":0,"cut":false,"hidden":true,"merged":[]}

{"sheet":"et_union_hor","index":26,"n_rows":98,"n_cols":34,"rows_kept":98,"cut":false,"hidden":true,"merged":[[19,7,20,7],[28,3,30,3],[28,4,30,4],[28,5,30,5],[28,6,29,6],[28,7,29,7],[34,7,35,7],[34,8,35,8],[34,9,35,9],[28,8,29,8],[28,9,29,9],[50,3,50,5],[50,6,51,6],[14,2,15,2],[14,3,15,3],[14,4,15,4],[19,2,20,2],[19,5,20,5],[34,6,35,6],[19,6,20,6],[49,3,49,6],[67,3,73,3],[67,28,73,28],[68,4,68,15],[71,4,71,15],[67,4,67,17],[68,20,70,20],[68,21,70,21],[71,20,73,20],[71,21,73,21],[85,6,85,15],[81,9,82,9],[81,10,82,10],[85,20,91,20],[85,21,91,21],[88,7,89,7],[77,3,91,3],[77,28,91,28],[80,4,83,4],[80,5,83,5],[80,6,83,6],[80,18,83,18],[81,8,82,8],[87,4,90,4],[87,5,90,5],[87,6,90,6],[87,18,90,18],[88,8,89,8],[88,9,89,9],[88,10,89,10],[80,11,80,12],[87,11,87,12],[77,4,77,17],[78,20,84,20],[78,21,84,21],[81,7,82,7],[78,6,78,15]]}
[]
[]
["et_Comm"]
[]
[]
[]
["et_List04"]
[]
[]
[]
[]
[]
["et_List09_0"]
[]
[null,"auto",null,1,null,null,0,null,null,"0",null,null,{"$f":"mergeValue(H15)","v":{"$error":"#NAME?"}},null,null,{"$f":"IF(ISERROR(MATCH(MID(Q15,1,250),MID(note_ter,1,250),0)),\"n\",\"y\")","v":"n"},null,{"$f":"K15&\"(\"&L15&\")\"","v":"()"}]
[null,null,null,null,null,null,null,"Добавить МР"]
[]
["et_List09_1"]
[]
[null,"auto",null,null,null,null,0,null,null,"0",null,null,{"$f":"mergeValue(H20)","v":{"$error":"#NAME?"}},null,null,null,null,{"$f":"K20&\"(\"&L20&\")\"","v":"()"}]
[null,null,null,null,null,null,null,null,null,null,"Добавить МО"]
[]
["et_List09_2"]
[]
[null,"auto",null,null,null,null,null,null,null,0,null,null,{"$f":"mergeValue(H25)","v":{"$error":"#NAME?"}},null,null,null,null,{"$f":"K25&\" (\"&L25&\")\"","v":" ()"}]
[]
["et_List07_1"]
[]
[null,null,null,"1",null,"нет",null,1,null,"нет",null,"1",null,null,null,null,null,null,null,null,null,null,null,null,"a",1705000]
[null,null,null,null,null,null,null,null,null,null,null,null,"Добавить централизованную систему коммунальной инфраструктуры"]
[null,null,null,null,null,null,null,null,"Добавить описание территории оказания услуг"]
[]
["et_List07_4"]
[]
[null,null,null,null,null,null,null,1,null,"нет",null,"1",null,null,null,null,null,null,null,null,null,null,null,null,"a",1705000]
[null,null,null,null,null,null,null,null,null,null,null,null,"Добавить централизованную систему коммунальной инфраструктуры"]
[]
["et_List07_5"]
[]
[null,null,null,null,null,null,null,null,null,null,null,"1",null,null,null,null,null,null,null,null,null,null,null,null,"a",1705000]
[]
[]
["et_List03"]
[]
["3","",null,null,null,null,null,null,null,null,null,null,{"$f":"IF(ISERROR(INDEX(kind_of_nameforms,MATCH(E45,kind_of_forms,0),1)),\"\",INDEX(kind_of_nameforms,MATCH(E45,kind_of_forms,0),1))","v":""}]
[]
["et_List02_st","et_List02_ter","et_List02_mr","et_List02_mo"]
[]
[]
[null,null,null,"Форма 1.0.1"]
[null,null,null,"Параметры формы",null,null,"Описание параметров формы"]
["\\",null,null,"№ п/п",null,"Информация"]
[null,null,null,"1",2,3,4]
[null,null,null,1,"Дата заполнения/внесения изменений",{"$f":"IF(form_up_date=\"\",\"\",form_up_date)","v":"29.04.2019"},"Указывается календарная дата первичного заполнения или внесения изменений в форму в виде «ДД.ММ.ГГГГ»."]
[null,null,null,"2.1","Наименование централизованной системы коммунальной инфраструктуры",null,"Указывается наименование централизованной системы холодного водоснабжения/горячего водоснабжения/водоотведения/теплоснабжения, к которой относится размещаемая информация.\nВ случае наличия нескольких централизованных систем коммунальной инфраструктуры, информация по каждой из них указывается в отдельной строке. "]
[null,null,null,"3.1","Наименование регулируемого вида деятельности",null,"Указывается наименование вида регулируемой деятельности."]
[null,null,null,"4.1","Территория оказания услуги по регулируемому виду деятельности","x"]
[null,null,null,{"$f":"D57&\".1\"","v":"4.1.1"},"Субъект РФ",{"$f":"IF(region_name=\"\",\"\",region_name)","v":"Ивановская область"},"Указывается наименование субъекта Российской Федерации"]
[null,null,null,"4.1.1.1","муниципальный район",null,"Указывается наименование муниципального района, на территории которого организация оказывает услуги по регулируемому виду деятельности."]
[null,null,null,"4.1.1.1.1","муниципальное образование",null,"Указывается наименование и код муниципального района, муниципального образования в соответствии с Общероссийским классификатором территорий муниципальных образований (далее - ОКТМО), входящего в муниципальный район, на территории которого организация оказывает услуги по регулируемому виду деятельности.\nВ случае оказания услуг по регулируемому виду деятельности на территории нескольких муниципальных районов (муниципальных образований) данные по каждому их них указываются в отдельной строке."]
[]
[]
[]
[]
[]
["et_List05_4"]
[]
[null,null,null,"1",null,null,null,null,null,null,null,null,null,null,null,null,null,null,null,null,null,null,null,null,null,null,null,null,null,null,"",null,"NOTSHOW",3]
[null,null,null,null,"Информация об объемах товаров и услуг, их стоимости и способах приобретения у организаций, в том числе:",null,null,null,null,null,null,null,null,null,null,null,{"$f":"SUMIF(T70:T71,\"i\",Q70:Q71)","v":0},null,"Указывается сумма стоимости приобретения товаров и услуг у организаций, сумма оплаты услуг которых превышает 20% суммы расходов на капитальный и текущий ремонт основных производственных средства","i",1,{"$f":"INDEX(List01_flag_index_1,1,MATCH(A68,List01_NumberColumns,0))","v":{"$error":"#N/A"}}]
[null,null,null,null,null,0]
[]
[null,null,null,null,null,null,null,null,null,null,null,null,null,null,null,null,null,null,null,"i",2,{"$f":"INDEX(List01_flag_index_2,1,MATCH(A68,List01_NumberColumns,0))","v":{"$error":"#N/A"}}]
[]
[]
[]
["et_List05_4"]
[]
[null,null,null,"1",null,null,null,null,null,null,null,null,null,null,null,null,null,null,null,null,null,null,null,null,null,null,null,null,null,null,"",null,"NOTSHOW",3]
[null,null,null,null,null,1,"Информация об объемах товаров и услуг, их стоимости и способах приобретения у организаций, в том числе:",null,null,null,null,null,null,null,null,null,{"$f":"SUMIF(T80:T85,\"i\",Q80:Q85)","v":0},null,"Указывается сумма стоимости приобретения товаров и услуг у организаций, сумма оплаты услуг которых превышает 20% суммы расходов на капитальный и текущий ремонт основных производственных средства","i",1,{"$f":"INDEX(List01_flag_index_1,1,MATCH(A78,List01_NumberColumns,0))","v":{"$error":"#N/A"}}]
[null,null,null,null,null,0]
[null,null,null,null,null,"1.1",null,null,"1","Итого по поставщику, в том числе","х","х",null,"х","х","х",{"$f":"SUM(Q82:Q84)","v":0},{"$f":"nerr(Q81/List01_costs_OPS)*100","v":{"$error":"#NAME?"}},"Указывается информация отдельно по организациям, сумма оплаты услуг которых превышает 20% суммы расходов на капитальный и текущий ремонт основных производственных средства.\nСпособ приобретения определяется из перечня: Торги/аукционы; Прямые договора без торгов; Прочее\n","i"]
[null,null,null,null,null,null,null,null,"1.1",null,null,null,"1",null,null,null,null,{"$f":"nerr(costs_OPS/List01_costs_OPS)*100","v":{"$error":"#NAME?"}}]
[null,null,null,null,null,null,null,null,null,null,null,null,null,"Добавить товар/услугу"]
[null,null,null,null,null,null,null,null,null,"Добавить способ"]
[null,null,null,null,null,null,"Добавить поставщика",null,null,null,null,null,null,null,null,null,null,null,"В случае наличия нескольких поставщиков, договоров, товаров и (или) услуг информация по ним указывается в отдельных строках."]
[null,null,null,null,null,null,null,null,null,null,null,null,null,null,null,null,null,null,null,"i",2,{"$f":"INDEX(List01_flag_index_2,1,MATCH(A78,List01_NumberColumns,0))","v":{"$error":"#N/A"}}]
[]
[null,null,null,null,null,null,null,null,null,null,null,null,null,null,null,null,null,null,null,"i"]
[]
[]
[]
[]
[]
[]
[]
[]
[]
["et_List13_1"]

{"sheet":"et_union_vert","index":27,"n_rows":0,"n_cols":0,"rows_kept":0,"cut":false,"hidden":true,"merged":[]}

{"sheet":"modList00","index":28,"n_rows":0,"n_cols":0,"rows_kept":0,"cut":false,"hidden":true,"merged":[]}

{"sheet":"modList02","index":29,"n_rows":0,"n_cols":0,"rows_kept":0,"cut":false,"hidden":true,"merged":[]}

{"sheet":"modList03","index":30,"n_rows":0,"n_cols":0,"rows_kept":0,"cut":false,"hidden":true,"merged":[]}

{"sheet":"modList04","index":31,"n_rows":0,"n_cols":0,"rows_kept":0,"cut":false,"hidden":true,"merged":[]}

{"sheet":"modList09","index":32,"n_rows":0,"n_cols":0,"rows_kept":0,"cut":false,"hidden":true,"merged":[]}

{"sheet":"modHTTP","index":33,"n_rows":0,"n_cols":0,"rows_kept":0,"cut":false,"hidden":true,"merged":[]}

{"sheet":"modfrmRegion","index":34,"n_rows":0,"n_cols":0,"rows_kept":0,"cut":false,"hidden":true,"merged":[]}

{"sheet":"MR_LIST","index":35,"n_rows":0,"n_cols":0,"rows_kept":0,"cut":false,"hidden":true,"merged":[]}

{"sheet":"REESTR_VT","index":36,"n_rows":0,"n_cols":0,"rows_kept":0,"cut":false,"hidden":true,"merged":[]}

{"sheet":"REESTR_VED","index":37,"n_rows":11,"n_cols":2,"rows_kept":11,"cut":false,"hidden":true,"merged":[]}
["ID_TARIFF_NAME","VED_NAME"]
[4190064,"Производство тепловой энергии. Некомбинированная выработка"]
[4190065,"Производство тепловой энергии. Комбинированная выработка с уст. мощностью производства электрической энергии менее 25 МВт"]
[4190066,"Производство тепловой энергии. Комбинированная выработка с уст. мощностью производства электрической энергии 25 МВт и более"]
[4190067,"Производство. Теплоноситель"]
[4190068,"Передача. Тепловая энергия"]
[4190069,"Передача. Теплоноситель"]
[4190070,"Сбыт. Тепловая энергия"]
[4190071,"Сбыт. Теплоноситель"]
[4190072,"Подключение (технологическое присоединение) к системе теплоснабжения"]
[4190073,"Поддержание резервной тепловой мощности при отсутствии потребления тепловой энергии"]

{"sheet":"modfrmReestrObj","index":38,"n_rows":0,"n_cols":0,"rows_kept":0,"cut":false,"hidden":true,"merged":[]}

{"sheet":"DataOrg","index":39,"n_rows":0,"n_cols":0,"rows_kept":0,"cut":false,"hidden":true,"merged":[]}

{"sheet":"modfrmReestr","index":40,"n_rows":0,"n_cols":0,"rows_kept":0,"cut":false,"hidden":true,"merged":[]}

{"sheet":"modUpdTemplMain","index":41,"n_rows":0,"n_cols":0,"rows_kept":0,"cut":false,"hidden":true,"merged":[]}

{"sheet":"REESTR_ORG","index":42,"n_rows":241,"n_cols":10,"rows_kept":241,"cut":false,"hidden":true,"merged":[]}
["№","REGION_ID","REGION_NAME","RST_ORG_ID","ORG_NAME","INN_NAME","KPP_NAME","ORG_START_DATE","ORG_END_DATE"]
[1,"2591","Ивановская область","26356432","АГОУ НПО \"Тейковская лесотехническая школа\"","3724001205","372401001",null,null,"WARM"]
[2,"2591","Ивановская область","26356448","АО \"Водоканал\"","3702597104","370250001",null,null,"WARM"]
[3,"2591","Ивановская область","26560525","АО \"ГУ ЖКХ\"","5116000922","511601001","13-05-2009 00:00:00",null,"WARM"]
[4,"2591","Ивановская область","28135188","АО \"Газпромнефть-Терминал\"","5406724282","540601001","01-01-2013 00:00:00",null,"WARM"]
[5,"2591","Ивановская область","26356464","АО \"Железобетон\"","3731011645","370201001",null,null,"WARM"]
[6,"2591","Ивановская область","28795512","АО \"ИГТСК\"","3702733445","370201001",null,null,"WARM"]
[7,"2591","Ивановская область","26356460","АО \"ИСМА\"","3702088266","370201001",null,null,"WARM"]
[8,"2591","Ивановская область","28795526","АО \"ИвГТЭ\"","3702733438","370250001","01-07-2014 00:00:00",null,"WARM"]
[9,"2591","Ивановская область","26356454","АО \"Ивстройкерамика\"","3729023717","370201001",null,null,"WARM"]
[10,"2591","Ивановская область","26356349","АО \"Кинешемская прядильно-ткацкая фабрика\"","3703011227","370301001",null,null,"WARM"]
[11,"2591","Ивановская область","27734219","АО \"Наволокское коммунальное хозяйство\"","3713007692","371301001",null,null,"WARM"]
[12,"2591","Ивановская область","26319298","АО \"ПСК\"","3729007313","370201001",null,null,"WARM"]
[13,"2591","Ивановская область","26356344","АО \"Поликор\"","3703000190","370301001",null,null,"WARM"]
[14,"2591","Ивановская область","26838066","АО \"РЭУ\"","7714783092","770401001",null,null,"WARM"]
[15,"2591","Ивановская область","26356375","АО \"Ресурсоснабжающая организация\"","3704562555","370401001",null,null,"WARM"]
[16,"2591","Ивановская область","28797488","АО \"Теплогенерирующая компания-7\"","5024139265","502401001",null,null,"WARM"]
[17,"2591","Ивановская область","26322043","АО \"Энергосервис\"","7709571825","770301001",null,null,"WARM"]
[18,"2591","Ивановская область","30358133","АО Учхоз \"Чернореченский\"","3711039547","371101001","09-10-2015 00:00:00",null,"WARM"]
[19,"2591","Ивановская область","28458375","ГУП Ивановской области \"Центр-Профи\"","3730001965","370201001",null,null,"WARM"]
[20,"2591","Ивановская область","26356446","Городской оздоровительный центр г. Иваново","3728001044","370201001",null,null,"WARM"]
[21,"2591","Ивановская область","27578018","ЗАО \"ИП \"Родники\"","3701046986","370101001",null,null,"WARM"]
[22,"2591","Ивановская область","26356467","ЗАО \"ИвТБС\"","3731023506","371101001",null,null,"WARM"]
[23,"2591","Ивановская область","28871825","ЗАО \"Ивановская областная типография\"","3702036973","370201001",null,null,"WARM"]
[24,"2591","Ивановская область","31250419","ЗАО \"Кран-Инвест\"","3702071745","370201001",null,null,"WARM"]
[25,"2591","Ивановская область","26356428","ЗАО \"Надежда\"","3722000340","372201001",null,null,"WARM"]
[26,"2591","Ивановская область","26356334","ЗАО \"Новая тепловая компания\"","3702053009","370201001",null,null,"WARM"]
[27,"2591","Ивановская область","26372351","ЗАО \"РМЗ\"","3721006639","372101001",null,null,"WARM"]
[28,"2591","Ивановская область","26613761","ЗАО \"РЭК\"","3721005554","372101001",null,null,"WARM"]
[29,"2591","Ивановская область","26356335","ЗАО \"УП ЖКХ\"","3702070170","370201001",null,null,"WARM"]
[30,"2591","Ивановская область","26356453","ЗАО \"Электроконтакт\"","3703000592","370301001",null,null,"WARM"]
[31,"2591","Ивановская область","28872599","ЗАО НПП \"Кабельщик Плюс\"","3729030200","370201001",null,null,"WARM"]
[32,"2591","Ивановская область","26550517","ИБХР ФКУ \"ЦОУМТС МВД России\"","7722093367","370201001",null,null,"WARM"]
[33,"2591","Ивановская область","28798631","ИП Смирнов М.А.","372100114738","отсутствует",null,null,"WARM"]
[34,"2591","Ивановская область","31032511","ИП Шорохов С.В.","370142619102","отсутствует",null,null,"WARM"]
[35,"2591","Ивановская область","26358406","Ивановский филиал ОАО \"ТГК-6\"","5257072937","370202001",null,null,"WARM"]
[36,"2591","Ивановская область","28031225","МК Жажлевская средняя общеобразовательная школа","3710004414","371001001",null,null,"WARM"]
[37,"2591","Ивановская область","28031202","МК Заречная средняя общеобразовательная  школа","3710004206","371001001","04-03-2002 00:00:00",null,"WARM"]
[38,"2591","Ивановская область","26356364","МП ЖКХ г. Шуи","3706001530","370601001",null,null,"WARM"]
[39,"2591","Ивановская область","27637850","МП ЗР «Заволжское РМПО ЖКХ»","3710000360","371001001",null,null,"WARM"]
[40,"2591","Ивановская область","26372358","МУП \"ЖКХ Большеклочковского сельского поселения\"","3724018791","372401001",null,null,"WARM"]
[41,"2591","Ивановская область","26372359","МУП \"ЖКХ Крапивновского сельского поселения\"","3724018978","372401001",null,null,"WARM"]
[42,"2591","Ивановская область","28030944","МУП \"ЖКХ Шуйского муниципального района\"","3706019048","370601001","25-04-2012 00:00:00",null,"WARM"]
[43,"2591","Ивановская область","26356437","МУП \"ЖКХ пос. Колобово\"","3725003124","372501001",null,null,"WARM"]
[44,"2591","Ивановская область","27986635","МУП \"Заволжский коммунальщик\"","3703045794","370301001",null,null,"WARM"]
[45,"2591","Ивановская область","30351598","МУП \"Заволжское коммунальное хозяйство\"","3703048509","370301001","15-10-2015 00:00:00",null,"WARM"]
[46,"2591","Ивановская область","28510819","МУП \"Коммунальные системы\"","3701048768","370101001",null,null,"WARM"]
[47,"2591","Ивановская область","31245240","МУП \"Коммунальщик\"","3711024251","371101001",null,null,"WARM"]
[48,"2591","Ивановская область","26755427","МУП \"Комсомольский банно-прачечный комбинат\"","3714083946","371401001",null,null,"WARM"]
[49,"2591","Ивановская область","27556180","МУП \"МПО ЖКХ\"","3704000764","370401001",null,null,"WARM"]
[50,"2591","Ивановская область","30873072","МУП \"МУК\"","3720007252","372001001",null,null,"WARM"]
[51,"2591","Ивановская область","26356414","МУП \"Приволжское ТЭП\"","3719009495","371901001",null,null,"WARM"]
[52,"2591","Ивановская область","30871711","МУП \"Тепловик\"","3704008523","370401001",null,null,"WARM"]
[53,"2591","Ивановская область","28275268","МУП \"Теплосеть\"","3705066140","370501001",null,null,"WARM"]
[54,"2591","Ивановская область","26613840","МУП ЖКХ \"Архиповский Тепловик\"","3711023875","372201001",null,null,"WARM"]
[55,"2591","Ивановская область","26758294","МУП ЖКХ \"Нерльское коммунальное объединение\"","3704563196","370401001",null,null,"WARM"]
[56,"2591","Ивановская область","26824407","МУП ЖКХ \"Новолеушинское коммунальное объединение\"","3704570517","370401001",null,null,"WARM"]
[57,"2591","Ивановская область","30358127","МУП ЖКХ \"ТЕПЛОЭНЕРГЕТИК\"","3711038543","371101001",null,null,"WARM"]
[58,"2591","Ивановская область","27556206","МУП ЖКХ Новогоряновское коммунальное объединение","3704570901","370401001",null,null,"WARM"]
[59,"2591","Ивановская область","26356434","МУП ЖКХ Тейковского муниципального района","3724004950","372401001",null,null,"WARM"]
[60,"2591","Ивановская область","26356358","МУП ЖКХ Фурмановского муниципального района","3705062837","370501001",null,null,"WARM"]
[61,"2591","Ивановская область","28544217","МУП ЖКХ Хромцовского сельского поселения","3705005331","370501001",null,null,"WARM"]
[62,"2591","Ивановская область","28286428","МУП ЗГП \"Заволжский коммунальщик\"","3710006210","370301001",null,null,"WARM"]
[63,"2591","Ивановская область","26356323","МУП ОК и ТС г.Вичуга","3701000050","370101001",null,null,"WARM"]
[64,"2591","Ивановская область","28869689","МУП РМПО ЖКХ Ильинского муниципального района","3712001144","371201001",null,null,"WARM"]
[65,"2591","Ивановская область","26356347","МУП г. Кинешмы \"ОК и ТС\"","3703002014","370301001",null,null,"WARM"]
[66,"2591","Ивановская область","26372316","МУПП \"ЖКХ \"Кохмабытсервис\"","3711004061","373201001",null,null,"WARM"]
[67,"2591","Ивановская область","26383201","ОАО \"Газпром газораспределение Иваново\"","3730006498","370250001",null,null,"WARM"]
[68,"2591","Ивановская область","28463102","ОАО \"Газпромнефть-Ярославль\"","7604140860","760401001",null,null,"WARM"]
[69,"2591","Ивановская область","27945135","ОАО \"ИНТЕР РАО ЕЭС\"","2320109650","997450001",null,null,"WARM"]
[70,"2591","Ивановская область","26955924","ОАО \"Ивановоглавснаб\"","3728000065","370201001",null,null,"WARM"]
[71,"2591","Ивановская область","26356463","ОАО \"Ивхимпром\"","3731001968","370201001",null,null,"WARM"]
[72,"2591","Ивановская область","26356436","ОАО \"Колобовская ткацкая фабрика\"","3725000765","372501001",null,null,"WARM"]
[73,"2591","Ивановская область","26559861","ОАО \"Комсервис\"","3711022670","371501001",null,null,"WARM"]
[74,"2591","Ивановская область","28032273","ОАО \"ПИ \"Гипрокоммунэнерго\"","3702548604","370201001",null,null,"WARM"]
[75,"2591","Ивановская область","26356417","ОАО \"Пучежская МТС\"","3720000137","372001001",null,null,"WARM"]
[76,"2591","Ивановская область","26356389","ОАО \"Савинский теплосервис\"","3711024195","372201001",null,null,"WARM"]
[77,"2591","Ивановская область","26372324","ОАО \"Совхоз \"Тепличный\"","3711021726","371101001",null,null,"WARM"]
[78,"2591","Ивановская область","27562160","ОАО \"ТСП\"","3704006981","370401001",null,null,"WARM"]
[79,"2591","Ивановская область","26554393","ОАО \"Тейковское предприятие тепловых сетей\"","3704005258","370401001",null,null,"WARM"]
[80,"2591","Ивановская область","26356361","ОАО \"Шуйская гармонь\"","3706000784","370601001",null,null,"WARM"]
[81,"2591","Ивановская область","27836230","ОАО \"Энергосервис\"","3705062604","370501001",null,null,"WARM"]
[82,"2591","Ивановская область","26356366","ОАО ХБК \"Шуйские ситцы\"","3706008060","370601001",null,null,"WARM"]
[83,"2591","Ивановская область","28869286","ОБСУСО \"Хозниковский психоневрологический интернат\"","3715003750","371501001",null,null,"WARM"]
[84,"2591","Ивановская область","26609685","ОГКОУ Вичугская школа-интернат V вида","3707001244","370701001",null,null,"WARM"]
[85,"2591","Ивановская область","26614357","ОГОУ \"Юрьевецкая школа-интернат VIII вида\"","3727003105","372701001",null,null,"WARM"]
[86,"2591","Ивановская область","26356408","ООО \" Пестяковское ЖКХ\"","3720004942","372001001",null,null,"WARM"]
[87,"2591","Ивановская область","26611495","ООО \"АЛЕКС\"","3713005744","371301001",null,null,"WARM"]
[88,"2591","Ивановская область","28458290","ООО \"АТЛАНТ\"","3706019680","370601001",null,null,"WARM"]
[89,"2591","Ивановская область","31246086","ООО \"Август Т\"","3328446507","332801001",null,null,"WARM"]
[90,"2591","Ивановская область","31250437","ООО \"Акрус\"","3706023911","370601001",null,null,"WARM"]
[91,"2591","Ивановская область","31246106","ООО \"Альфа\"","7722445731","772201001",null,null,"WARM"]
[92,"2591","Ивановская область","30847079","ООО \"Альянс\"","3703019628","370301001",null,null,"WARM"]
[93,"2591","Ивановская область","26611155","ООО \"Альянс-Профи\"","3702552872","370201001",null,null,"WARM"]
[94,"2591","Ивановская область","26356419","ООО \"Берег\"","3720003586","372001001",null,null,"WARM"]
[95,"2591","Ивановская область","30399145","ООО \"Бит Стандарт\"","3702680793","370201001",null,null,"WARM"]
[96,"2591","Ивановская область","26356325","ООО \"ВичугаАвтоТрансСервис\"","3701005316","370101001",null,null,"WARM"]
[97,"2591","Ивановская область","26615100","ООО \"Водосети\"","3706017266","370601001",null,null,"WARM"]
[98,"2591","Ивановская область","26613948","ООО \"Газпром теплоэнерго Иваново\"","3702008951","370201001",null,null,"WARM"]
[99,"2591","Ивановская область","31026129","ООО \"Галеон\"","3703020800","370301001","27-06-2017 00:00:00",null,"WARM"]
[100,"2591","Ивановская область","26428292","ООО \"Галтекс\"","3702067805","370201001",null,null,"WARM"]
[101,"2591","Ивановская область","30374139","ООО \"Городская Аварийная служба\"","3702694980","370401001",null,null,"WARM"]
[102,"2591","Ивановская область","26372315","ООО \"ДСОЛ КД \"Березовая Роща\"","3711003188","371101001",null,null,"WARM"]
[103,"2591","Ивановская область","28262498","ООО \"Декоративные культуры\"","3702597930","370201001",null,null,"WARM"]
[104,"2591","Ивановская область","26356350","ООО \"Дмитриевский химический завод - Производство\"","3703016440","370301001",null,null,"WARM"]
[105,"2591","Ивановская область","28460952","ООО \"Единая Теплоснабжающая Компания\"","3701047130","370101001",null,null,"WARM"]
[106,"2591","Ивановская область","31245042","ООО \"ЖКХ Сервис\"","3704010297","370401001",null,null,"WARM"]
[107,"2591","Ивановская область","26611473","ООО \"Жилкомсервис\"","3703043003","370301001",null,null,"WARM"]
[108,"2591","Ивановская область","27628242","ООО \"Жилсервис\"","3704562925","370401001",null,null,"WARM"]
[109,"2591","Ивановская область","31026123","ООО \"ЗТС\"","3703047992","370301001","31-01-2014 00:00:00",null,"WARM"]
[110,"2591","Ивановская область","31021908","ООО \"Завод подъемников\"","3711039850","371101001",null,null,"WARM"]
[111,"2591","Ивановская область","30374800","ООО \"Заря\"","3705009061","370501001",null,null,"WARM"]
[112,"2591","Ивановская область","30905597","ООО \"ИвСтройМатериалы\"","3702158347","370201001",null,null,"WARM"]
[113,"2591","Ивановская область","26524290","ООО \"Ивановская Тепловая Электростанция\"","3702070999","370201001",null,null,"WARM"]
[114,"2591","Ивановская область","30905384","ООО \"Ивановская биоэнергетическая компания\"","3706024111","370601001",null,null,"WARM"]
[115,"2591","Ивановская область","31021917","ООО \"Ивановская областная типография-ОИТ\"","3702161727","370201001",null,null,"WARM"]
[116,"2591","Ивановская область","27556251","ООО \"Ивановская энергетическая компания\"","3702093192","370201001",null,null,"WARM"]
[117,"2591","Ивановская область","30847071","ООО \"Ивановская энергетическая компания-1\"","3702124764","370201001",null,null,"WARM"]
[118,"2591","Ивановская область","26647665","ООО \"Ивжилкомсервис\"","3706018132","370601001",null,null,"WARM"]
[119,"2591","Ивановская область","26356329","ООО \"Ивсиликат\"","3702011425","370201001",null,null,"WARM"]
[120,"2591","Ивановская область","27534701","ООО \"Импульс\"","3702533439","370201001",null,null,"WARM"]
[121,"2591","Ивановская область","31037690","ООО \"ИнвестЭнерго\"","3711044459","371101001","27-10-2016 00:00:00",null,"WARM"]
[122,"2591","Ивановская область","28982037","ООО \"КОММУНАЛЬЩИК\"","3711034309","371101001",null,null,"WARM"]
[123,"2591","Ивановская область","26524717","ООО \"Каскад-Энергосбыт\"","4028033356","402801001",null,null,"WARM"]
[124,"2591","Ивановская область","31247000","ООО \"Квартал\"","3702184643","370201001",null,null,"WARM"]
[125,"2591","Ивановская область","26356332","ООО \"Кольма-тепло\"","3702014666","370201001",null,null,"WARM"]
[126,"2591","Ивановская область","30861278","ООО \"Коммунальщик Ресурс\"","3711039650","371101001",null,null,"WARM"]
[127,"2591","Ивановская область","26610551","ООО \"Коммунальщик\"","3711024318","371101001",null,null,"WARM"]
[128,"2591","Ивановская область","31250337","ООО \"Контур\"","3704010280","370401001",null,null,"WARM"]
[129,"2591","Ивановская область","30847063","ООО \"Контур-Т\"","3711042927","371101001",null,null,"WARM"]
[130,"2591","Ивановская область","28147607","ООО \"Крайтекс-Ресурс\"","7714821661","370201001",null,null,"WARM"]
[131,"2591","Ивановская область","31169744","ООО \"Купол\"","3704005593","370201001",null,null,"WARM"]
[132,"2591","Ивановская область","26372356","ООО \"Курорт Оболсуново\"","3724004407","372401001",null,null,"WARM"]
[133,"2591","Ивановская область","28798621","ООО \"Лен\"","3705004401","370501001",null,null,"WARM"]
[134,"2591","Ивановская область","28454323","ООО \"МИП \"Кинешма\"","3703045850","370301001",null,null,"WARM"]
[135,"2591","Ивановская область","31021922","ООО \"МЭР\"","3711045981","371101001",null,null,"WARM"]
[136,"2591","Ивановская область","26356326","ООО \"Машиностроительный завод\"","3701005965","370101001",null,null,"WARM"]
[137,"2591","Ивановская область","31250323","ООО \"Межмуниципальное коммунальное предприятие\"","3703044328","370301001",null,null,"WARM"]
[138,"2591","Ивановская область","30914295","ООО \"Межрегиональный инжиниринговый центр\"","3702167447","370201001",null,null,"WARM"]
[139,"2591","Ивановская область","30873138","ООО \"МихалевоЭнергоРесурс\"","3711044314","371101001",null,null,"WARM"]
[140,"2591","Ивановская область","28462094","ООО \"Модный дом\"","3702613356","370201001",null,null,"WARM"]
[141,"2591","Ивановская область","31259005","ООО \"Нордтекс\"","5001069981","500101001",null,null,"WARM"]
[142,"2591","Ивановская область","26356443","ООО \"Объединенные котельные\"","3726005004","372601001",null,null,"WARM"]
[143,"2591","Ивановская область","26756409","ООО \"Октябрь\"","3704562918","370401001",null,null,"WARM"]
[144,"2591","Ивановская область","26356406","ООО \"Палехская мануфактура\"","3717005167","371701001",null,null,"WARM"]
[145,"2591","Ивановская область","26550515","ООО \"Палехская сбытовая компания\"","3717005625","371701001",null,null,"WARM"]
[146,"2591","Ивановская область","26356407","ООО \"Палехское ПОК\"","3717005590","371701001",null,null,"WARM"]
[147,"2591","Ивановская область","30373753","ООО \"Приволжская коммуна\"","3703048040","370301001",null,null,"WARM"]
[148,"2591","Ивановская область","28146368","ООО \"Пучежская МТС\"","3720006146","372001001",null,null,"WARM"]
[149,"2591","Ивановская область","30941194","ООО \"Районнная котельная № 2\"","4401177267","440101001",null,null,"WARM"]
[150,"2591","Ивановская область","28462123","ООО \"Ресурс\"","3702597633","370201001",null,null,"WARM"]
[151,"2591","Ивановская область","31253002","ООО \"РесурсЭнерго\"","3702207918","370201001",null,null,"WARM"]
[152,"2591","Ивановская область","28040266","ООО \"Родниковская тепловая сеть\"","3701047789","370101001",null,null,"WARM"]
[153,"2591","Ивановская область","28869476","ООО \"Родниковская теплосбытовая компания\"","3701048165","370101001",null,null,"WARM"]
[154,"2591","Ивановская область","28869990","ООО \"Руса\"","3702701348","370643001",null,null,"WARM"]
[155,"2591","Ивановская область","31152367","ООО \"СТРОЙ МАРКЕТ\"","3327131102","332701001","08-12-2015 00:00:00",null,"WARM"]
[156,"2591","Ивановская область","28795677","ООО \"СТС\"","3702714668","370201001",null,null,"WARM"]
[157,"2591","Ивановская область","26372329","ООО \"Санаторий имени \"Станко\"","3713005769","370301001",null,null,"WARM"]
[158,"2591","Ивановская область","26613253","ООО \"Стеклолента\"","3327844551","371501001",null,null,"WARM"]
[159,"2591","Ивановская область","29647259","ООО \"Стеклолента\"","3328003030","332801001","21-04-2015 00:00:00",null,"WARM"]
[160,"2591","Ивановская область","26356327","ООО \"ТДЛ Энерго\"","3702005291","370201001",null,null,"WARM"]
[161,"2591","Ивановская область","26766744","ООО \"ТЕПЛО-Сервис\"","3703040980","370301001",null,null,"WARM"]
[162,"2591","Ивановская область","30844764","ООО \"ТЕПЛОСЕРВИС\"","3702155762","370201001","15-06-2016 00:00:00",null,"WARM"]
[163,"2591","Ивановская область","30358139","ООО \"ТЕХУГЛЕРОДРЕСУРС\"","3711038984","371101001",null,null,"WARM"]
[164,"2591","Ивановская область","30382130","ООО \"ТСП\"","3704008548","370401001",null,null,"WARM"]
[165,"2591","Ивановская область","31246822","ООО \"ТЭС-Приволжск\"","3705010317","370501001","28-09-2018 00:00:00",null,"WARM"]
[166,"2591","Ивановская область","26546370","ООО \"Тейковская котельная\"","3704561230","370401001",null,null,"WARM"]
[167,"2591","Ивановская область","26550483","ООО \"Тепло-восток\"","3720004050","372001001",null,null,"WARM"]
[168,"2591","Ивановская область","29645558","ООО \"Тепло-город\"","3720006883","372001001",null,null,"WARM"]
[169,"2591","Ивановская область","26550442","ООО \"Тепло-запад\"","3720004068","372001001",null,null,"WARM"]
[170,"2591","Ивановская область","26550481","ООО \"Тепло-север\"","3720004090","372001001",null,null,"WARM"]
[171,"2591","Ивановская область","26550424","ООО \"Тепло-село\"","3720004082","372001001",null,null,"WARM"]
[172,"2591","Ивановская область","26356374","ООО \"Тепло-электро сети\"","3708001984","370801001",null,null,"WARM"]
[173,"2591","Ивановская область","26550462","ООО \"Тепло-юг\"","3720004075","372001001",null,null,"WARM"]
[174,"2591","Ивановская область","26825437","ООО \"ТеплоВодаКанализация\"","3704570250","370401001",null,null,"WARM"]
[175,"2591","Ивановская область","28829381","ООО \"ТеплоМаш\"","3701048905","370101001",null,null,"WARM"]
[176,"2591","Ивановская область","28140313","ООО \"ТеплоСбытовая Компания\"","3706019231","370601001",null,null,"WARM"]
[177,"2591","Ивановская область","28140301","ООО \"ТеплоСнаб\"","3711031643","371101001",null,null,"WARM"]
[178,"2591","Ивановская область","26614199","ООО \"ТеплоСнабжающая компания\"","3706015501","370601001",null,null,"WARM"]
[179,"2591","Ивановская область","31021847","ООО \"ТеплоЭнерго\"","3703020528","370301001","15-03-2017 00:00:00",null,"WARM"]
[180,"2591","Ивановская область","30844755","ООО \"Тепловик\"","3702114043","370201001","22-07-2015 00:00:00",null,"WARM"]
[181,"2591","Ивановская область","28466296","ООО \"Тепловик\"","3704006290","370401001",null,null,"WARM"]
[182,"2591","Ивановская область","31021896","ООО \"Тепловик\"","3704009855","370401001","14-08-2017 00:00:00",null,"WARM"]
[183,"2591","Ивановская область","28458355","ООО \"Тепловик\"","3711032132","371101001",null,null,"WARM"]
[184,"2591","Ивановская область","26514414","ООО \"Тепловик\"","3722003260","372201001",null,null,"WARM"]
[185,"2591","Ивановская область","28468386","ООО \"Тепловые и электрические сети\"","3702706191","370020100",null,null,"WARM"]
[186,"2591","Ивановская область","27589960","ООО \"Тепловые системы\"","3702504406","370201001","01-01-2007 00:00:00",null,"WARM"]
[187,"2591","Ивановская область","28458275","ООО \"Тепловые энергетические системы\"","3702684131","370201001",null,null,"WARM"]
[188,"2591","Ивановская область","26611471","ООО \"ТеплокоммунСервис\"","3703043268","370301001",null,null,"WARM"]
[189,"2591","Ивановская область","26407787","ООО \"Теплосервис\"","3716002519","371601001",null,null,"WARM"]
[190,"2591","Ивановская область","26356351","ООО \"Теплосетевая компания\"","3703040531","370301001",null,null,"WARM"]
[191,"2591","Ивановская область","26647639","ООО \"Теплоснаб\"","3703044462","370301001",null,null,"WARM"]
[192,"2591","Ивановская область","27588345","ООО \"Теплоснаб-2010\"","3702630143","370201001",null,null,"WARM"]
[193,"2591","Ивановская область","28869463","ООО \"Теплоснаб-Родники\"","3701048535","370101001",null,null,"WARM"]
[194,"2591","Ивановская область","26407761","ООО \"Теплотехническая компания\"","3725007841","372501001",null,null,"WARM"]
[195,"2591","Ивановская область","30384833","ООО \"Теплотранс\"","3701049360","370101001","28-09-2015 00:00:00",null,"WARM"]
[196,"2591","Ивановская область","26550499","ООО \"Теплоцентраль\"","3720004036","372001001",null,null,"WARM"]
[197,"2591","Ивановская область","26356397","ООО \"Теплоцентраль-1\"","3713007678","370301001",null,null,"WARM"]
[198,"2591","Ивановская область","26757860","ООО \"Техуглеродресурс\"","3711026731","370101001",null,null,"WARM"]
[199,"2591","Ивановская область","28871105","ООО \"Транзит\"","3706020484","370601001",null,null,"WARM"]
[200,"2591","Ивановская область","31246126","ООО \"ТрансСнаб\"","3703021553","370301001",null,null,"WARM"]
[201,"2591","Ивановская область","28030998","ООО \"Транссервис\"","3706019376","370601001","14-09-2012 00:00:00",null,"WARM"]
[202,"2591","Ивановская область","28458364","ООО \"Тэтракомсервис\"","3706017604","370601001",null,null,"WARM"]
[203,"2591","Ивановская область","26826666","ООО \"УЮТ\"","3705064880","370501001",null,null,"WARM"]
[204,"2591","Ивановская область","28508742","ООО \"Управляющая компания \"Ивтекмаш\"","3702620530","370201001",null,null,"WARM"]
[205,"2591","Ивановская область","27836114","ООО \"Управляющая компания\"","3720004950","372001001","22-05-2009 00:00:00",null,"WARM"]
[206,"2591","Ивановская область","27716976","ООО \"Фабрика трикотажа \"Заречье\"","3703043765","370301001",null,null,"WARM"]
[207,"2591","Ивановская область","27556243","ООО \"Фурманов ТеплоЭнерго\"","3705065041","370501001",null,null,"WARM"]
[208,"2591","Ивановская область","26647657","ООО \"ХБК \"Навтекс\"","3703044102","370301001",null,null,"WARM"]
[209,"2591","Ивановская область","28869455","ООО \"ХЛЕБ ПОВОЛЖЬЯ\"","3702738348","370201001",null,null,"WARM"]
[210,"2591","Ивановская область","28031035","ООО \"Шуйская швейная фабрика\"","3706018534","370601001",null,null,"WARM"]
[211,"2591","Ивановская область","26356363","ООО \"Шуйское предприятие \"Шетрик\"","3706001379","370601001",null,null,"WARM"]
[212,"2591","Ивановская область","28084679","ООО \"ШуяПромЭнерго\"","3706019062","370601001","27-11-2012 00:00:00",null,"WARM"]
[213,"2591","Ивановская область","26758019","ООО \"Энергетик\"","3721008266","372101001",null,null,"WARM"]
[214,"2591","Ивановская область","26356343","ООО \"Энергосервисная компания\"","3702542673","370201001",null,null,"WARM"]
[215,"2591","Ивановская область","26514435","ООО \"Энергосетьком\"","3702083638","370201001",null,null,"WARM"]
[216,"2591","Ивановская область","27712249","ООО \"Энерготранзит\"","3702656092","370201001",null,null,"WARM"]
[217,"2591","Ивановская область","28798660","ООО \"Энерготраст\"","3702720693","370201001",null,null,"WARM"]
[218,"2591","Ивановская область","27556255","ООО \"Юридическое Экспертно-консультационное бюро \"Гарантия\"","3702500497","370201001",null,null,"WARM"]
[219,"2591","Ивановская область","30847091","ООО \"Яковлевский жаккард\"","3719004338","371901001",null,null,"WARM"]
[220,"2591","Ивановская область","26615140","СПК \"Афанасьевский\"","3725000839","372501001",null,null,"WARM"]
[221,"2591","Ивановская область","26356425","СПК \"Возрождение\"","3721001133","372102001",null,null,"WARM"]
[222,"2591","Ивановская область","26372348","СПК \"Ленинский путь\"","3720000722","372001001",null,null,"WARM"]
[223,"2591","Ивановская область","26428722","СПК (колхоз) \"Милюковский\"","3725000878","372501001",null,null,"WARM"]
[224,"2591","Ивановская область","26836275","Северная Дирекция по тепловодоснабжению структурное подразделение Центральной дирекции по тепловодоснабжению - филиала ОАО \"РЖД\"","7708503727","760445028",null,null,"WARM"]
[225,"2591","Ивановская область","27556163","ТМУП БОН","3704003363","370401001",null,null,"WARM"]
[226,"2591","Ивановская область","26407806","ТНВ \"ООО Агромаркет и компания\"","3704561336","370401001",null,null,"WARM"]
[227,"2591","Ивановская область","28031167","ФГБОУ ВО \"Ивановская пожарно-спасательная академия ГПС МЧС России\"","3702050590","370201001",null,null,"WARM"]
[228,"2591","Ивановская область","26356459","ФГБОУ ВО \"Ивановский государственный энергетический университет им. В.И. Ленина\"","3731000308","370201001",null,null,"WARM"]
[229,"2591","Ивановская область","30903763","ФГБУ \"ЦЖКУ\" МИНОБОРОНЫ РОССИИ","7729314745","770101001",null,null,"WARM"]
[230,"2591","Ивановская область","26372328","ФГБУЗ МЦ \"Решма\" ФМБА России","3713003497","371301001",null,null,"WARM"]
[231,"2591","Ивановская область","26356393","ФГУ ИК-4 УФСИН России по Ивановской области","3713000016","370301001",null,null,"WARM"]
[232,"2591","Ивановская область","26356382","ФГУП \"Учебно-опытное хозяйство ИГСХА\"","3711000645","371101001",null,null,"WARM"]
[233,"2591","Ивановская область","30879843","Филиал \"Владимирский\" ПАО \"Т Плюс\" (на территории Ивановской области)","6315376946","370245001",null,null,"WARM"]
[234,"2591","Ивановская область","26356400","Филиал \"Ивановские ПГУ\" АО \"Интер РАО - Электрогенерация\"","7704784450","370443001",null,null,"WARM"]
[235,"2591","Ивановская область","28858820","Филиал \"Ивановский\" ПАО \"Т Плюс\"","6315376946","370243001",null,"27-02-2018 00:00:00","WARM"]
[236,"2591","Ивановская область","26514123","Филиал \"Ивэнерго\" ПАО \"МРСК Центра и Приволжья\"","5260200603","370202001",null,null,"WARM"]
[237,"2591","Ивановская область","26358460","Филиал ОАО \"Верхневолжские магистральные нефтепроводы\" - Горьковское районное нефтепроводное управление","5260900725","525002001",null,null,"WARM"]
[238,"2591","Ивановская область","26356362","Шуйское МУП ОК и ТС","3706001241","370601001",null,null,"WARM"]
[239,"2591","Ивановская область","26356465","ЭАО \"ИФАКТ\"","3731020537","370201001",null,null,"WARM"]
[240,"2591","Ивановская область","28798643","Ярославская дистанция гражданских сооружений СП Северной дирекции по эксплуатации зданий и сооружений СП СЖД филиала ОАО \"РЖД\"","7708503727","760445099",null,null,"WARM"]

{"sheet":"modClassifierValidate","index":43,"n_rows":0,"n_cols":0,"rows_kept":0,"cut":false,"hidden":true,"merged":[]}

{"sheet":"modHyp","index":44,"n_rows":0,"n_cols":0,"rows_kept":0,"cut":false,"hidden":true,"merged":[]}

{"sheet":"modfrmDateChoose","index":45,"n_rows":0,"n_cols":0,"rows_kept":0,"cut":false,"hidden":true,"merged":[]}

{"sheet":"modComm","index":46,"n_rows":0,"n_cols":0,"rows_kept":0,"cut":false,"hidden":true,"merged":[]}

{"sheet":"modThisWorkbook","index":47,"n_rows":0,"n_cols":0,"rows_kept":0,"cut":false,"hidden":true,"merged":[]}

{"sheet":"REESTR_MO","index":48,"n_rows":144,"n_cols":4,"rows_kept":144,"cut":false,"hidden":true,"merged":[]}
["№","МР","МО","МО_ОКТМО"]
[1,"Верхнеландеховский муниципальный район","Верхнеландеховский муниципальный район","24602000"]
[2,"Верхнеландеховский муниципальный район","Верхнеландеховское городское поселение","24602151"]
[3,"Верхнеландеховский муниципальный район","Кромское сельское поселение","24602420"]
[4,"Верхнеландеховский муниципальный район","Мытское сельское поселение","24602427"]
[5,"Верхнеландеховский муниципальный район","Симаковское сельское поселение","24602438"]
[6,"Вичугский муниципальный район","Вичугский муниципальный район","24601000"]
[7,"Вичугский муниципальный район","Каменское городское поселение","24601154"]
[8,"Вичугский муниципальный район","Новописцовское городское поселение","24601157"]
[9,"Вичугский муниципальный район","Октябрьское сельское поселение","24601410"]
[10,"Вичугский муниципальный район","Сошниковское сельское поселение","24601440"]
[11,"Вичугский муниципальный район","Старовичугское городское поселение","24601160"]
[12,"Вичугский муниципальный район","Сунженское сельское поселение","24601446"]
[13,"Гаврилово-Посадский муниципальный район","Гаврилово-Посадский муниципальный район","24603000"]
[14,"Гаврилово-Посадский муниципальный район","Гаврилово-Посадское городское поселение","24603101"]
[15,"Гаврилово-Посадский муниципальный район","Новоселковское сельское поселение","24603428"]
[16,"Гаврилово-Посадский муниципальный район","Осановецкое сельское поселение","24603432"]
[17,"Гаврилово-Посадский муниципальный район","Петровское городское поселение","24603156"]
[18,"Гаврилово-Посадский муниципальный район","Шекшовское сельское поселение","24603440"]
[19,"Городской округ Вичуга","Городской округ Вичуга","24703000"]
[20,"Городской округ Иваново","Городской округ Иваново","24701000"]
[21,"Городской округ Кинешма","Городской округ Кинешма","24705000"]
[22,"Городской округ Кохма","Городской округ Кохма","24706000"]
[23,"Городской округ Тейково","Городской округ Тейково","24707000"]
[24,"Городской округ Шуя","Городской округ Шуя","24711000"]
[25,"Заволжский муниципальный район","Волжское сельское поселение","24605410"]
[26,"Заволжский муниципальный район","Дмитриевское сельское поселение","24605414"]
[27,"Заволжский муниципальный район","Заволжский муниципальный район","24605000"]
[28,"Заволжский муниципальный район","Заволжское городское поселение","24605101"]
[29,"Заволжский муниципальный район","Междуреченское сельское поселенеие","24605445"]
[30,"Заволжский муниципальный район","Сосневское сельское поселение","24605430"]
[31,"Ивановский муниципальный район","Балахонковское сельское поселение","24607456"]
[32,"Ивановский муниципальный район","Беляницкое сельское поселение","24607404"]
[33,"Ивановский муниципальный район","Богданихское сельское поселение","24607440"]
[34,"Ивановский муниципальный район","Богородское сельское поселение","24607412"]
[35,"Ивановский муниципальный район","Ивановский муниципальный район","24607000"]
[36,"Ивановский муниципальный район","Коляновское сельское поселение","24607424"]
[37,"Ивановский муниципальный район","Куликовское сельское поселение","24607460"]
[38,"Ивановский муниципальный район","Новоталицкое сельское поселение","24607448"]
[39,"Ивановский муниципальный район","Озерновское сельское поселение","24607457"]
[40,"Ивановский муниципальный район","Подвязновское сельское поселение","24607458"]
[41,"Ивановский муниципальный район","Тимошихское сельское поселение","24607468"]
[42,"Ивановский муниципальный район","Чернореченское сельское поселение","24607473"]
[43,"Ильинский муниципальный район","Аньковское сельское поселение","24609408"]
[44,"Ильинский муниципальный район","Ивашевское сельское поселение","24609416"]
[45,"Ильинский муниципальный район","Ильинский муниципальный район","24609000"]
[46,"Ильинский муниципальный район","Ильинское городское поселение","24609151"]
[47,"Ильинский муниципальный район","Исаевское сельское поселение","24609428"]
[48,"Ильинский муниципальный район","Щенниковское сельское поселение","24609452"]
[49,"Кинешемский муниципальный район","Батмановское сельское поселение","24611404"]
[50,"Кинешемский муниципальный район","Горковское сельское поселение","24611408"]
[51,"Кинешемский муниципальный район","Кинешемский муниципальный район","24611000"]
[52,"Кинешемский муниципальный район","Ласкарихинское сельское поселение","24611440"]
[53,"Кинешемский муниципальный район","Луговское сельское поселение","24611428"]
[54,"Кинешемский муниципальный район","Наволокское городское поселение","24611104"]
[55,"Кинешемский муниципальный район","Решемское сельское поселение","24611436"]
[56,"Кинешемский муниципальный район","Шилекшинское сельское поселение","24611448"]
[57,"Комсомольский муниципальный район","Комсомольский муниципальный район","24613000"]
[58,"Комсомольский муниципальный район","Комсомольское городское поселение","24613101"]
[59,"Комсомольский муниципальный район","Марковское сельское поселение","24613415"]
[60,"Комсомольский муниципальный район","Новоусадебское сельское поселение","24613424"]
[61,"Комсомольский муниципальный район","Октябрьское сельское поселение","24613430"]
[62,"Комсомольский муниципальный район","Писцовское сельское поселение","24613432"]
[63,"Комсомольский муниципальный район","Подозерское сельское поселение","24613433"]
[64,"Лежневский муниципальный район","Лежневский муниципальный район","24614000"]
[65,"Лежневский муниципальный район","Лежневское городское поселение","24614151"]
[66,"Лежневский муниципальный район","Лежневское сельское поселение","24614430"]
[67,"Лежневский муниципальный район","Новогоркинское сельское поселение","24614435"]
[68,"Лежневский муниципальный район","Сабиновское сельское поселение","24614415"]
[69,"Лежневский муниципальный район","Шилыковское сельское поселение","24614470"]
[70,"Лухский муниципальный район","Благовещенское сельское поселение","24615408"]
[71,"Лухский муниципальный район","Лухский муниципальный район","24615000"]
[72,"Лухский муниципальный район","Лухское городское поселение","24615151"]
[73,"Лухский муниципальный район","Порздневское сельское поселение","24615424"]
[74,"Лухский муниципальный район","Рябовское сельское поселение","24615428"]
[75,"Лухский муниципальный район","Тимирязевское сельское поселение","24615432"]
[76,"Палехский муниципальный район","Майдаковское сельское поселение","24617412"]
[77,"Палехский муниципальный район","Палехский муниципальный район","24617000"]
[78,"Палехский муниципальный район","Палехское городское поселение","24617151"]
[79,"Палехский муниципальный район","Пановское сельское поселение","24617424"]
[80,"Палехский муниципальный район","Раменское сельское поселение","24617436"]
[81,"Пестяковский муниципальный район","Нижнеландеховское сельское поселение","24619444"]
[82,"Пестяковский муниципальный район","Пестяковский муниципальный район","24619000"]
[83,"Пестяковский муниципальный район","Пестяковское городское поселение","24619151"]
[84,"Пестяковский муниципальный район","Пестяковское сельское поселение","24619448"]
[85,"Приволжский муниципальный район","Ингарское сельское поселение","24620416"]
[86,"Приволжский муниципальный район","Новское сельское поселение","24620434"]
[87,"Приволжский муниципальный район","Плесское городское поселение","24620104"]
[88,"Приволжский муниципальный район","Приволжский муниципальный район","24620000"]
[89,"Приволжский муниципальный район","Приволжское городское поселение","24620106"]
[90,"Приволжский муниципальный район","Рождественское сельское поселение","24620440"]
[91,"Пучежский муниципальный район","Затеихинское сельское поселение","24621412"]
[92,"Пучежский муниципальный район","Илья-Высоковское сельское поселение","24621416"]
[93,"Пучежский муниципальный район","Мортковское сельское поселение","24621436"]
[94,"Пучежский муниципальный район","Пучежский муниципальный район","24621000"]
[95,"Пучежский муниципальный район","Пучежское городское поселение","24621101"]
[96,"Пучежский муниципальный район","Сеготское сельское поселение","24621444"]
[97,"Родниковский муниципальный район","Каминское сельское поселение","24623406"]
[98,"Родниковский муниципальный район","Парское сельское поселение","24623444"]
[99,"Родниковский муниципальный район","Родниковский муниципальный район","24623000"]
[100,"Родниковский муниципальный район","Родниковское городское поселение","24623101"]
[101,"Родниковский муниципальный район","Филисовское сельское поселение","24623452"]
[102,"Савинский муниципальный район","Архиповское сельское поселение","24625436"]
[103,"Савинский муниципальный район","Вознесенское сельское поселение","24625404"]
[104,"Савинский муниципальный район","Воскресенское сельское поселение","24625408"]
[105,"Савинский муниципальный район","Горячевское сельское поселение","24625412"]
[106,"Савинский муниципальный район","Савинский муниципальный район","24625000"]
[107,"Савинский муниципальный район","Савинское городское поселение","24625151"]
[108,"Савинский муниципальный район","Савинское сельское поселение","24625432"]
[109,"Тейковский муниципальный район","Большеклочковское сельское поселение","24629408"]
[110,"Тейковский муниципальный район","Крапивновское сельское поселение","24629416"]
[111,"Тейковский муниципальный район","Морозовское сельское поселение","24629420"]
[112,"Тейковский муниципальный район","Нерльское городское поселение","24629154"]
[113,"Тейковский муниципальный район","Новогоряновское сельское поселение","24629430"]
[114,"Тейковский муниципальный район","Новолеушинское сельское поселение","24629444"]
[115,"Тейковский муниципальный район","Тейковский муниципальный район","24629000"]
[116,"Фурмановский муниципальный район","Дуляпинское сельское поселение","24631412"]
[117,"Фурмановский муниципальный район","Иванковское сельское поселение","24631436"]
[118,"Фурмановский муниципальный район","Панинское сельское поселение","24631432"]
[119,"Фурмановский муниципальный район","Фурмановский муниципальный район","24631000"]
[120,"Фурмановский муниципальный район","Фурмановское городское поселение","24631101"]
[121,"Фурмановский муниципальный район","Хромцовское сельское поселение","24631406"]
[122,"Фурмановский муниципальный район","Широковское сельское поселение","24631456"]
[123,"Шуйский муниципальный район","Афанасьевское сельское поселение","24633408"]
[124,"Шуйский муниципальный район","Васильевское сельское поселение","24633412"]
[125,"Шуйский муниципальный район","Введенское сельское поселение","24633472"]
[126,"Шуйский муниципальный район","Китовское сельское поселение","24633440"]
[127,"Шуйский муниципальный район","Колобовское городское поселение","24633154"]
[128,"Шуйский муниципальный район","Остаповское сельское поселение","24633432"]
[129,"Шуйский муниципальный район","Перемиловское сельское поселение","24633456"]
[130,"Шуйский муниципальный район","Семейкинское сельское поселение","24633460"]
[131,"Шуйский муниципальный район","Шуйский муниципальный район","24633000"]
[132,"Южский муниципальный район","Мугреево-Никольское сельское поселение","24635407"]
[133,"Южский муниципальный район","Новоклязьминское сельское поселени","24635416"]
[134,"Южский муниципальный район","Талицко-Мугреевское сельское поселение","24635420"]
[135,"Южский муниципальный район","Холуйское сельское поселение","24635406"]
[136,"Южский муниципальный район","Хотимльское сельское поселение","24635424"]
[137,"Южский муниципальный район","Южский муниципальный район","24635000"]
[138,"Южский муниципальный район","Южское городское поселение","24635101"]
[139,"Юрьевецкий муниципальный район","Ёлнатское сельское поселение","24637404"]
[140,"Юрьевецкий муниципальный район","Михайловское сельское поселение","24637424"]
[141,"Юрьевецкий муниципальный район","Соболевское сельское поселение","24637432"]
[142,"Юрьевецкий муниципальный район","Юрьевецкий муниципальный район","24637000"]
[143,"Юрьевецкий муниципальный район","Юрьевецкое городское поселение","24637101"]

{"sheet":"REESTR_MO_FILTER","index":49,"n_rows":0,"n_cols":0,"rows_kept":0,"cut":false,"hidden":true,"merged":[]}

{"sheet":"modfrmReestrMR","index":50,"n_rows":0,"n_cols":0,"rows_kept":0,"cut":false,"hidden":true,"merged":[]}

{"sheet":"modServiceModule","index":51,"n_rows":0,"n_cols":0,"rows_kept":0,"cut":false,"hidden":true,"merged":[]}

{"sheet":"modfrmCheckUpdates","index":52,"n_rows":0,"n_cols":0,"rows_kept":0,"cut":false,"hidden":true,"merged":[]}

{"sheet":"REESTR_DS","index":53,"n_rows":3,"n_cols":2,"rows_kept":3,"cut":false,"hidden":true,"merged":[]}
[]
[]
[null,"Городской округ Иваново, Городской округ Иваново (24701000);"]

{"sheet":"REESTR_CHS","index":54,"n_rows":0,"n_cols":0,"rows_kept":0,"cut":false,"hidden":true,"merged":[]}

{"sheet":"REESTR_LINK","index":55,"n_rows":3,"n_cols":3,"rows_kept":3,"cut":false,"hidden":true,"merged":[]}
["ID","LINK_NAME","REGION"]
[4189678,"https://portal.eias.ru/Portal/DownloadPage.aspx?type=12&guid=????????-????-????-????-????????????","ALL"]
[4190415,"https://eias.fstrf.ru/disclo/get_file?p_guid=????????-????-????-????-????????????","ALL"]